{"text_format":"1","workbook":"xlsx","n_sheets":5,"sheets":["Cover","Photos","Lists","Sites","Sheet1"],"not_rendered":{"charts":0,"images":60,"macros":1,"external_links":0,"defined_names":7,"comments":0,"pivot_tables":0},"unopened":[],"bounds":{"document_bytes":16777216,"sheet_cells":100000,"rows_first":2000,"rows_last":500,"rows_between":2000,"halvings":0,"cell_chars":16384,"cell_head_chars":4096},"cells_cut":0,"cells_raw":0,"read":"whole","date_system":"1900"}

{"sheet":"Cover","index":0,"n_rows":133,"n_cols":52,"rows_kept":133,"cut":false,"hidden":false,"merged":[[25,31,25,43],[82,26,82,29],[90,17,90,20],[91,11,91,14],[85,0,85,44],[91,17,91,20],[89,17,89,20],[89,11,89,14],[90,11,90,14],[88,11,88,14],[51,0,51,44],[65,0,65,44],[30,38,30,41],[82,11,82,14],[87,11,87,14],[83,11,83,14],[31,10,31,35],[7,35,7,38],[9,0,9,44],[12,35,12,43],[7,40,7,43],[11,0,11,5],[7,9,7,18],[12,6,12,20],[12,0,12,5],[11,35,11,43],[11,6,11,13],[13,0,13,5],[15,0,15,5],[13,6,13,20],[14,6,14,20],[15,6,15,20],[14,0,14,5],[16,6,16,8],[49,6,49,43],[30,8,30,22],[33,0,33,44],[25,14,25,17],[27,0,27,44],[24,8,24,21],[29,38,29,41],[29,8,29,22],[22,0,22,44],[18,0,18,44],[20,6,20,15],[20,27,20,35],[16,0,16,5],[24,31,24,43],[111,11,111,14],[112,11,112,14],[108,11,108,14],[107,11,107,14],[125,0,125,44],[111,17,111,20],[109,17,109,20],[110,11,110,14],[109,11,109,14],[110,17,110,20],[112,17,112,20],[132,11,132,14],[132,17,132,20],[88,22,92,43],[108,22,112,43],[127,11,127,14],[128,11,128,14],[128,22,132,43],[129,11,129,14],[129,17,129,20],[130,11,130,14],[130,17,130,20],[131,11,131,14],[131,17,131,20],[92,11,92,14],[92,17,92,20],[105,0,105,44]]}
[]
[]
[]
[]
[]
[]
[]
["INSPECTOR / TEAM:",null,null,null,null,null,null,null,null,null,null,null,null,null,null,null,null,null,null,null,null,null,null,"INSPECTION DATE(S):"]
[]
["SITE IDENTIFICATION"]
[]
["FAC ID:",null,null,null,null,null,null,null,null,null,null,null,null,null,null,null,null,null,null,null,null,null,null,"DEP SITE MANAGER / TEAM:"]
["SITE NAME:",null,null,null,null,null,null,null,null,null,null,null,null,null,null,null,null,null,null,null,null,null,null,"CURRENT BUSINESS NAME:"]
["ADDRESS:",null,null,null,null,null,null,null,null,null,null,null,null,null,null,null,null,null,null,null,null,null,null,"FACILITY STATUS:"]
["CITY:"]
["COUNTY:"]
["SCORE:"]
[]
["WORK ORDER"]
[]
["WO or TA #:",null,null,null,null,null,null,null,null,null,null,null,null,null,null,null,null,null,null,null,null,null,null,"EVENT #:"]
[]
["CONSULTANT"]
[]
["COMPANY NAME:",null,null,null,null,null,null,null,"AECOM",null,null,null,null,null,null,null,null,null,null,null,null,null,null,"PROJ. MANAGER:"]
["NUMBER of REPRESENTATIVES:",null,null,null,null,null,null,null,null,null,null,null,null,null,null,null,null,null,null,null,null,null,null,"FIELD LEAD:"]
[null,null,null,null,null,null,null,null,null,null,null,null,null,null,null," "]
["SUBCONTRACTOR(S)"]
[null,null,null,null,null,null,null,null,null,null,null,null,null,null,null," "]
["COMPANY NAME:",null,null,null,null,null,null,null,null,null,null,null,null,null,null,null,null,null,null,null,null,null,null,"NUMBER of REPRESENTATIVES:"]
[]
[]
[null,null,null,null,null,null,null,null,null,null,null,null,null,null,null," "]
["SCOPE OF WORK OBSERVED (details on following pages)"]
[]
[]
[]
[]
[]
[]
[]
[]
[]
[]
[]
[]
[]
[]
[]
[]
[]
["GENERAL ISSUES (If \"No\" or \"N/A\" is selected, describe issues in Comments section.)"]
[]
["Are digital photos attached to this report?"]
[]
["Were BPSS guidance and Preapproval SOP procedures followed? "]
[]
["Did the contractor request that the inspector sign the Health & Safety Plan?"]
[]
["Did the inspector make contact with the site owner or facility representative?"]
[]
["Does the site map appear accurate?  "]
[]
["Does the area map appear current (adjacent properties)?  "]
[]
["INSTRUMENTS & EQUIPMENT"]
[]
["CONSULTANT INSTRUMENTS/EQUIPMENT USED:"]
[]
[]
[]
[]
[]
[]
["Instrument calibration onsite observed?"]
[]
["SUBCONTRACTOR INSTRUMENTS/EQUIPMENT USED:"]
[]
[]
[]
["Instrument calibration onsite observed?"]
[]
["EXPECTED START DATE:",null,null,null,null,null,null,null,null,null,null,null,null,null,null,null,null,null,null,null,null,null,null,null,null,"Expected Event Duration:",null,null,null,null,"days"]
["ACTUAL START DATE:"]
[]
["ACTIVITIES OBSERVED / COMMENTS:"]
[null,null,null,null,null,null,null,null,null,null,null,null,null,null,null,null,null,null,null,null,null,null,null,null,null,null,null,null,null,null,null,null,null,null,null,null,null,null,null,null,null,null,null,null,null,null,null,null,null,null,null," "]
["INSPECTION DATE:",null,null,null,null,null,null,null,null,null,null,null,null,null,null,null,null,null,null,null,null,"WEATHER:"]
["EXPECTED START TIME:"]
["OBSERVED TIMES:",null,null,null,null,null,null,null,null,null,null,"On Site",null,null,null,null,null,"Off Site"]
["INSPECTOR:"]
["CONTRACTOR:"]
["SUBCONTRACTOR:"]
[]
[]
[]
[]
[]
[]
[]
[]
[]
[]
[]
[]
["ACTIVITIES OBSERVED / COMMENTS:"]
[]
["INSPECTION DATE:",null,null,null,null,null,null,null,null,null,null,null,null,null,null,null,null,null,null,null,null,"WEATHER:"]
["EXPECTED START TIME:"]
["OBSERVED TIMES:",null,null,null,null,null,null,null,null,null,null,"On Site",null,null,null,null,null,"Off Site"]
["INSPECTOR:"]
["CONTRACTOR:"]
["SUBCONTRACTOR:"]
[null,null,null,null,null,null,null,null,null,null,null,null,null,null,null,null,null,null,null,null,null,null,null,null,null,null,null,null,null,null,null,null,null,null,null,null,null,null,null,null,null,null,null,null,null,null,null,null,null,null,null," "]
[]
[]
[]
[]
[]
[]
[]
[]
[]
[]
[]
["ACTIVITIES OBSERVED / COMMENTS:"]
[]
["INSPECTION DATE:",null,null,null,null,null,null,null,null,null,null,null,null,null,null,null,null,null,null,null,null,"WEATHER:"]
["EXPECTED START TIME:"]
["OBSERVED TIMES:",null,null,null,null,null,null,null,null,null,null,"On Site",null,null,null,null,null,"Off Site"]
["INSPECTOR:"]
["CONTRACTOR:"]
["SUBCONTRACTOR:"]

{"sheet":"Photos","index":1,"n_rows":695,"n_cols":7,"rows_kept":695,"cut":false,"hidden":false,"merged":[[694,2,695,9],[636,2,637,9],[638,2,638,3],[640,1,665,9],[666,2,667,9],[580,2,580,3],[582,1,607,9],[608,2,609,9],[610,1,635,9],[668,1,693,9],[522,2,522,3],[524,1,549,9],[550,2,551,9],[552,1,577,9],[578,2,579,9],[464,2,464,3],[466,1,491,9],[492,2,493,9],[494,1,519,9],[520,2,521,9],[348,2,348,3],[350,1,375,9],[376,2,377,9],[436,1,461,9],[462,2,463,9],[378,1,403,9],[404,2,405,9],[406,2,406,3],[408,1,433,9],[434,2,435,9],[2,1,27,9],[292,1,317,9],[320,1,345,9],[260,2,261,9],[0,2,0,3],[58,2,58,3],[116,2,116,3],[174,2,174,3],[28,2,29,9],[204,1,229,9],[30,1,55,9],[234,1,259,9],[60,1,85,9],[88,1,113,9],[118,1,143,9],[346,2,347,9],[144,2,145,9],[172,2,173,9],[202,2,203,9],[230,2,231,9],[262,1,287,9],[56,2,57,9],[86,2,87,9],[288,2,289,9],[318,2,319,9],[290,2,290,3],[114,2,115,9],[232,2,232,3],[146,1,171,9],[176,1,201,9]]}
[null,"Fac. ID #:",{"$f":"Cover!G12","v":0},null,null,"Site Name:",{"$f":"Cover!G13","v":0}]
[]
[null,"PLACE PHOTO HERE - SIZE TO BORDERS.    HERE IS AN EASY WAY TO ACCURATELY RE-SIZE PHOTOS:  FROM THE MENU BAR, SELECT:  VIEW, TOOLBARS, DRAWING.  ON THE DRAWING TOOLBAR, SELECT:  DRAW, SNAP-TO-GRID.  THEN JUST CLICK AND DRAG THE TOP-LEFT AND BOTTOM-RIGHT CORNERS OF THE PHOTO TO THE CORRESPONDING CORNER OF THE BORDER."]
[]
[]
[]
[]
[]
[]
[]
[]
[]
[]
[]
[]
[]
[]
[]
[]
[]
[]
[]
[]
[]
[]
[]
[]
[]
[null,"Photo 1:"]
[]
[null,"PLACE PHOTO HERE - SIZE TO BORDERS.    HERE IS AN EASY WAY TO ACCURATELY RE-SIZE PHOTOS:  FROM THE MENU BAR, SELECT:  VIEW, TOOLBARS, DRAWING.  ON THE DRAWING TOOLBAR, SELECT:  DRAW, SNAP-TO-GRID.  THEN JUST CLICK AND DRAG THE TOP-LEFT AND BOTTOM-RIGHT CORNERS OF THE PHOTO TO THE CORRESPONDING CORNER OF THE BORDER."]
[]
[]
[]
[]
[]
[]
[]
[]
[]
[]
[]
[]
[]
[]
[]
[]
[]
[]
[]
[]
[]
[]
[]
[]
[]
[null,"Photo 2:"]
[]
[null,"Fac. ID #:",{"$f":"Cover!G12","v":0},null,null,"Site Name:",{"$f":"Cover!G13","v":0}]
[]
[null,"PLACE PHOTO HERE - SIZE TO BORDERS.    HERE IS AN EASY WAY TO ACCURATELY RE-SIZE PHOTOS:  FROM THE MENU BAR, SELECT:  VIEW, TOOLBARS, DRAWING.  ON THE DRAWING TOOLBAR, SELECT:  DRAW, SNAP-TO-GRID.  THEN JUST CLICK AND DRAG THE TOP-LEFT AND BOTTOM-RIGHT CORNERS OF THE PHOTO TO THE CORRESPONDING CORNER OF THE BORDER."]
[]
[]
[]
[]
[]
[]
[]
[]
[]
[]
[]
[]
[]
[]
[]
[]
[]
[]
[]
[]
[]
[]
[]
[]
[]
[null,"Photo 3:"]
[]
[null,"PLACE PHOTO HERE - SIZE TO BORDERS.    HERE IS AN EASY WAY TO ACCURATELY RE-SIZE PHOTOS:  FROM THE MENU BAR, SELECT:  VIEW, TOOLBARS, DRAWING.  ON THE DRAWING TOOLBAR, SELECT:  DRAW, SNAP-TO-GRID.  THEN JUST CLICK AND DRAG THE TOP-LEFT AND BOTTOM-RIGHT CORNERS OF THE PHOTO TO THE CORRESPONDING CORNER OF THE BORDER."]
[]
[]
[]
[]
[]
[]
[]
[]
[]
[]
[]
[]
[]
[]
[]
[]
[]
[]
[]
[]
[]
[]
[]
[]
[]
[null,"Photo 4:"]
[]
[null,"Fac. ID #:",{"$f":"Cover!G12","v":0},null,null,"Site Name:",{"$f":"Cover!G13","v":0}]
[]
[]
[]
[]
[]
[]
[]
[]
[]
[]
[]
[]
[]
[]
[]
[]
[]
[]
[]
[]
[]
[]
[]
[]
[]
[]
[]
[null,"Photo 5:"]
[]
[null,"PLACE PHOTO HERE - SIZE TO BORDERS.    HERE IS AN EASY WAY TO ACCURATELY RE-SIZE PHOTOS:  FROM THE MENU BAR, SELECT:  VIEW, TOOLBARS, DRAWING.  ON THE DRAWING TOOLBAR, SELECT:  DRAW, SNAP-TO-GRID.  THEN JUST CLICK AND DRAG THE TOP-LEFT AND BOTTOM-RIGHT CORNERS OF THE PHOTO TO THE CORRESPONDING CORNER OF THE BORDER."]
[]
[]
[]
[]
[]
[]
[]
[]
[]
[]
[]
[]
[]
[]
[]
[]
[]
[]
[]
[]
[]
[]
[]
[]
[]
[null,"Photo 6:"]
[]
[null,"Fac. ID #:",{"$f":"Cover!G12","v":0},null,null,"Site Name:",{"$f":"Cover!G13","v":0}]
[]
[null,"PLACE PHOTO HERE - SIZE TO BORDERS.    HERE IS AN EASY WAY TO ACCURATELY RE-SIZE PHOTOS:  FROM THE MENU BAR, SELECT:  VIEW, TOOLBARS, DRAWING.  ON THE DRAWING TOOLBAR, SELECT:  DRAW, SNAP-TO-GRID.  THEN JUST CLICK AND DRAG THE TOP-LEFT AND BOTTOM-RIGHT CORNERS OF THE PHOTO TO THE CORRESPONDING CORNER OF THE BORDER."]
[]
[]
[]
[]
[]
[]
[]
[]
[]
[]
[]
[]
[]
[]
[]
[]
[]
[]
[]
[]
[]
[]
[]
[]
[]
[null,"Photo 7:","well set"]
[]
[null,"PLACE PHOTO HERE - SIZE TO BORDERS.    HERE IS AN EASY WAY TO ACCURATELY RE-SIZE PHOTOS:  FROM THE MENU BAR, SELECT:  VIEW, TOOLBARS, DRAWING.  ON THE DRAWING TOOLBAR, SELECT:  DRAW, SNAP-TO-GRID.  THEN JUST CLICK AND DRAG THE TOP-LEFT AND BOTTOM-RIGHT CORNERS OF THE PHOTO TO THE CORRESPONDING CORNER OF THE BORDER."]
[]
[]
[]
[]
[]
[]
[]
[]
[]
[]
[]
[]
[]
[]
[]
[]
[]
[]
[]
[]
[]
[]
[]
[]
[]
[null,"Photo 8:"]
[]
[null,"Fac. ID #:",{"$f":"Cover!G12","v":0},null,null,"Site Name:",{"$f":"Cover!G13","v":0}]
[]
[null,"PLACE PHOTO HERE - SIZE TO BORDERS.    HERE IS AN EASY WAY TO ACCURATELY RE-SIZE PHOTOS:  FROM THE MENU BAR, SELECT:  VIEW, TOOLBARS, DRAWING.  ON THE DRAWING TOOLBAR, SELECT:  DRAW, SNAP-TO-GRID.  THEN JUST CLICK AND DRAG THE TOP-LEFT AND BOTTOM-RIGHT CORNERS OF THE PHOTO TO THE CORRESPONDING CORNER OF THE BORDER."]
[]
[]
[]
[]
[]
[]
[]
[]
[]
[]
[]
[]
[]
[]
[]
[]
[]
[]
[]
[]
[]
[]
[]
[]
[]
[null,"Photo 9:"]
[]
[null,"PLACE PHOTO HERE - SIZE TO BORDERS.    HERE IS AN EASY WAY TO ACCURATELY RE-SIZE PHOTOS:  FROM THE MENU BAR, SELECT:  VIEW, TOOLBARS, DRAWING.  ON THE DRAWING TOOLBAR, SELECT:  DRAW, SNAP-TO-GRID.  THEN JUST CLICK AND DRAG THE TOP-LEFT AND BOTTOM-RIGHT CORNERS OF THE PHOTO TO THE CORRESPONDING CORNER OF THE BORDER."]
[]
[]
[]
[]
[]
[]
[]
[]
[]
[]
[]
[]
[]
[]
[]
[]
[]
[]
[]
[]
[]
[]
[]
[]
[]
[null,"Photo 10:"]
[]
[null,"Fac. ID #:",{"$f":"Cover!G12","v":0},null,null,"Site Name:",{"$f":"Cover!G13","v":0}]
[]
[null,"PLACE PHOTO HERE - SIZE TO BORDERS.    HERE IS AN EASY WAY TO ACCURATELY RE-SIZE PHOTOS:  FROM THE MENU BAR, SELECT:  VIEW, TOOLBARS, DRAWING.  ON THE DRAWING TOOLBAR, SELECT:  DRAW, SNAP-TO-GRID.  THEN JUST CLICK AND DRAG THE TOP-LEFT AND BOTTOM-RIGHT CORNERS OF THE PHOTO TO THE CORRESPONDING CORNER OF THE BORDER."]
[]
[]
[]
[]
[]
[]
[]
[]
[]
[]
[]
[]
[]
[]
[]
[]
[]
[]
[]
[]
[]
[]
[]
[]
[]
[null,"Photo 11:"]
[]
[null,"PLACE PHOTO HERE - SIZE TO BORDERS.    HERE IS AN EASY WAY TO ACCURATELY RE-SIZE PHOTOS:  FROM THE MENU BAR, SELECT:  VIEW, TOOLBARS, DRAWING.  ON THE DRAWING TOOLBAR, SELECT:  DRAW, SNAP-TO-GRID.  THEN JUST CLICK AND DRAG THE TOP-LEFT AND BOTTOM-RIGHT CORNERS OF THE PHOTO TO THE CORRESPONDING CORNER OF THE BORDER."]
[]
[]
[]
[]
[]
[]
[]
[]
[]
[]
[]
[]
[]
[]
[]
[]
[]
[]
[]
[]
[]
[]
[]
[]
[]
[null,"Photo 12:"]
[]
[null,"Fac. ID #:",{"$f":"Cover!G12","v":0},null,null,"Site Name:",{"$f":"Cover!G13","v":0}]
[]
[null,"PLACE PHOTO HERE - SIZE TO BORDERS.    HERE IS AN EASY WAY TO ACCURATELY RE-SIZE PHOTOS:  FROM THE MENU BAR, SELECT:  VIEW, TOOLBARS, DRAWING.  ON THE DRAWING TOOLBAR, SELECT:  DRAW, SNAP-TO-GRID.  THEN JUST CLICK AND DRAG THE TOP-LEFT AND BOTTOM-RIGHT CORNERS OF THE PHOTO TO THE CORRESPONDING CORNER OF THE BORDER."]
[]
[]
[]
[]
[]
[]
[]
[]
[]
[]
[]
[]
[]
[]
[]
[]
[]
[]
[]
[]
[]
[]
[]
[]
[]
[null,"Photo 13:"]
[]
[null,"PLACE PHOTO HERE - SIZE TO BORDERS.    HERE IS AN EASY WAY TO ACCURATELY RE-SIZE PHOTOS:  FROM THE MENU BAR, SELECT:  VIEW, TOOLBARS, DRAWING.  ON THE DRAWING TOOLBAR, SELECT:  DRAW, SNAP-TO-GRID.  THEN JUST CLICK AND DRAG THE TOP-LEFT AND BOTTOM-RIGHT CORNERS OF THE PHOTO TO THE CORRESPONDING CORNER OF THE BORDER."]
[]
[]
[]
[]
[]
[]
[]
[]
[]
[]
[]
[]
[]
[]
[]
[]
[]
[]
[]
[]
[]
[]
[]
[]
[]
[null,"Photo 14:"]
[]
[null,"Fac. ID #:",{"$f":"Cover!G12","v":0},null,null,"Site Name:",{"$f":"Cover!G13","v":0}]
[]
[null,"PLACE PHOTO HERE - SIZE TO BORDERS.    HERE IS AN EASY WAY TO ACCURATELY RE-SIZE PHOTOS:  FROM THE MENU BAR, SELECT:  VIEW, TOOLBARS, DRAWING.  ON THE DRAWING TOOLBAR, SELECT:  DRAW, SNAP-TO-GRID.  THEN JUST CLICK AND DRAG THE TOP-LEFT AND BOTTOM-RIGHT CORNERS OF THE PHOTO TO THE CORRESPONDING CORNER OF THE BORDER."]
[]
[]
[]
[]
[]
[]
[]
[]
[]
[]
[]
[]
[]
[]
[]
[]
[]
[]
[]
[]
[]
[]
[]
[]
[]
[null,"Photo 15:"]
[]
[null,"PLACE PHOTO HERE - SIZE TO BORDERS.    HERE IS AN EASY WAY TO ACCURATELY RE-SIZE PHOTOS:  FROM THE MENU BAR, SELECT:  VIEW, TOOLBARS, DRAWING.  ON THE DRAWING TOOLBAR, SELECT:  DRAW, SNAP-TO-GRID.  THEN JUST CLICK AND DRAG THE TOP-LEFT AND BOTTOM-RIGHT CORNERS OF THE PHOTO TO THE CORRESPONDING CORNER OF THE BORDER."]
[]
[]
[]
[]
[]
[]
[]
[]
[]
[]
[]
[]
[]
[]
[]
[]
[]
[]
[]
[]
[]
[]
[]
[]
[]
[null,"Photo 16:"]
[]
[null,"Fac. ID #:",{"$f":"Cover!G12","v":0},null,null,"Site Name:",{"$f":"Cover!G13","v":0}]
[]
[null,"PLACE PHOTO HERE - SIZE TO BORDERS.    HERE IS AN EASY WAY TO ACCURATELY RE-SIZE PHOTOS:  FROM THE MENU BAR, SELECT:  VIEW, TOOLBARS, DRAWING.  ON THE DRAWING TOOLBAR, SELECT:  DRAW, SNAP-TO-GRID.  THEN JUST CLICK AND DRAG THE TOP-LEFT AND BOTTOM-RIGHT CORNERS OF THE PHOTO TO THE CORRESPONDING CORNER OF THE BORDER."]
[]
[]
[]
[]
[]
[]
[]
[]
[]
[]
[]
[]
[]
[]
[]
[]
[]
[]
[]
[]
[]
[]
[]
[]
[]
[null,"Photo 17:"]
[]
[null,"PLACE PHOTO HERE - SIZE TO BORDERS.    HERE IS AN EASY WAY TO ACCURATELY RE-SIZE PHOTOS:  FROM THE MENU BAR, SELECT:  VIEW, TOOLBARS, DRAWING.  ON THE DRAWING TOOLBAR, SELECT:  DRAW, SNAP-TO-GRID.  THEN JUST CLICK AND DRAG THE TOP-LEFT AND BOTTOM-RIGHT CORNERS OF THE PHOTO TO THE CORRESPONDING CORNER OF THE BORDER."]
[]
[]
[]
[]
[]
[]
[]
[]
[]
[]
[]
[]
[]
[]
[]
[]
[]
[]
[]
[]
[]
[]
[]
[]
[]
[null,"Photo 18:"]
[]
[null,"Fac. ID #:",{"$f":"Cover!G12","v":0},null,null,"Site Name:",{"$f":"Cover!G13","v":0}]
[]
[null,"PLACE PHOTO HERE - SIZE TO BORDERS.    HERE IS AN EASY WAY TO ACCURATELY RE-SIZE PHOTOS:  FROM THE MENU BAR, SELECT:  VIEW, TOOLBARS, DRAWING.  ON THE DRAWING TOOLBAR, SELECT:  DRAW, SNAP-TO-GRID.  THEN JUST CLICK AND DRAG THE TOP-LEFT AND BOTTOM-RIGHT CORNERS OF THE PHOTO TO THE CORRESPONDING CORNER OF THE BORDER."]
[]
[]
[]
[]
[]
[]
[]
[]
[]
[]
[]
[]
[]
[]
[]
[]
[]
[]
[]
[]
[]
[]
[]
[]
[]
[null,"Photo 19:"]
[]
[null,"PLACE PHOTO HERE - SIZE TO BORDERS.    HERE IS AN EASY WAY TO ACCURATELY RE-SIZE PHOTOS:  FROM THE MENU BAR, SELECT:  VIEW, TOOLBARS, DRAWING.  ON THE DRAWING TOOLBAR, SELECT:  DRAW, SNAP-TO-GRID.  THEN JUST CLICK AND DRAG THE TOP-LEFT AND BOTTOM-RIGHT CORNERS OF THE PHOTO TO THE CORRESPONDING CORNER OF THE BORDER."]
[]
[]
[]
[]
[]
[]
[]
[]
[]
[]
[]
[]
[]
[]
[]
[]
[]
[]
[]
[]
[]
[]
[]
[]
[]
[null,"Photo 20:"]
[]
[null,"Fac. ID #:",{"$f":"Cover!G12","v":0},null,null,"Site Name:",{"$f":"Cover!G13","v":0}]
[]
[null,"PLACE PHOTO HERE - SIZE TO BORDERS.    HERE IS AN EASY WAY TO ACCURATELY RE-SIZE PHOTOS:  FROM THE MENU BAR, SELECT:  VIEW, TOOLBARS, DRAWING.  ON THE DRAWING TOOLBAR, SELECT:  DRAW, SNAP-TO-GRID.  THEN JUST CLICK AND DRAG THE TOP-LEFT AND BOTTOM-RIGHT CORNERS OF THE PHOTO TO THE CORRESPONDING CORNER OF THE BORDER."]
[]
[]
[]
[]
[]
[]
[]
[]
[]
[]
[]
[]
[]
[]
[]
[]
[]
[]
[]
[]
[]
[]
[]
[]
[]
[null,"Photo 21:"]
[]
[null,"PLACE PHOTO HERE - SIZE TO BORDERS.    HERE IS AN EASY WAY TO ACCURATELY RE-SIZE PHOTOS:  FROM THE MENU BAR, SELECT:  VIEW, TOOLBARS, DRAWING.  ON THE DRAWING TOOLBAR, SELECT:  DRAW, SNAP-TO-GRID.  THEN JUST CLICK AND DRAG THE TOP-LEFT AND BOTTOM-RIGHT CORNERS OF THE PHOTO TO THE CORRESPONDING CORNER OF THE BORDER."]
[]
[]
[]
[]
[]
[]
[]
[]
[]
[]
[]
[]
[]
[]
[]
[]
[]
[]
[]
[]
[]
[]
[]
[]
[]
[null,"Photo 22:"]
[]
[null,"Fac. ID #:",{"$f":"Cover!G12","v":0},null,null,"Site Name:",{"$f":"Cover!G13","v":0}]
[]
[null,"PLACE PHOTO HERE - SIZE TO BORDERS.    HERE IS AN EASY WAY TO ACCURATELY RE-SIZE PHOTOS:  FROM THE MENU BAR, SELECT:  VIEW, TOOLBARS, DRAWING.  ON THE DRAWING TOOLBAR, SELECT:  DRAW, SNAP-TO-GRID.  THEN JUST CLICK AND DRAG THE TOP-LEFT AND BOTTOM-RIGHT CORNERS OF THE PHOTO TO THE CORRESPONDING CORNER OF THE BORDER."]
[]
[]
[]
[]
[]
[]
[]
[]
[]
[]
[]
[]
[]
[]
[]
[]
[]
[]
[]
[]
[]
[]
[]
[]
[]
[null,"Photo 23:"]
[]
[null,"PLACE PHOTO HERE - SIZE TO BORDERS.    HERE IS AN EASY WAY TO ACCURATELY RE-SIZE PHOTOS:  FROM THE MENU BAR, SELECT:  VIEW, TOOLBARS, DRAWING.  ON THE DRAWING TOOLBAR, SELECT:  DRAW, SNAP-TO-GRID.  THEN JUST CLICK AND DRAG THE TOP-LEFT AND BOTTOM-RIGHT CORNERS OF THE PHOTO TO THE CORRESPONDING CORNER OF THE BORDER."]
[]
[]
[]
[]
[]
[]
[]
[]
[]
[]
[]
[]
[]
[]
[]
[]
[]
[]
[]
[]
[]
[]
[]
[]
[]
[null,"Photo 24:"]

{"sheet":"Lists","index":2,"n_rows":246,"n_cols":7,"rows_kept":246,"cut":false,"hidden":false,"merged":[]}
["CC","County","Company","Drillers","Inspectors","Site Managers"]
["01","ALACHUA","A2L Technologies","Ardaman & Associates","Ken Starling / 6",null,{"$f":"UPPER(B2)","v":"ALACHUA"}]
["02","BAKER","Access Environmental Associates","ATI Drilling",null,"Burmeister, Donna / 2","BAKER"]
["03","BAY","Ace Constructors","Custom Drilling Services",null,"Fields, Susan / 6","BAY"]
["04","BRADFORD","Advanced Environmental Services","Diversified",null,"Gruzlovic, Paul / 6","BRADFORD"]
["05","BREVARD","Advanced Environmental Technologies","DTD Contract Drilling",null,"Blyden, Tamara / 3","BREVARD"]
[null,null,"AECOM"]
["06","BROWARD","Aerostar Environmental Services","Environmental Drilling Service",null,"Kilga, Kyle / 2","BROWARD"]
["07","CALHOUN","American Compliance Technologies","ESN Southeast",null,"King, Creed / 6","CALHOUN"]
["08","CHARLOTTE","American Environmental Associates","Groundwater Protection",null,"Miller, Blake / 6","CHARLOTTE"]
["09","CITRUS","American Environmental Engineering of Florida","Huss Drilling",null,"Mobley, Jackie / 6","CITRUS"]
["10","CLAY","Andreyev Engineering","Imperial Testing",null,"Monteiro, Natalie / 6","CLAY"]
["11","COLLIER","Apex Environmental Engineering & Comp.","JAEE Environmental Services",null,"Newmyer, Bill / 6","COLLIER"]
["12","COLUMBIA","Applied Earth Sciences","JRS GeoServices",null,null,"COLUMBIA"]
["13","DADE","Applied Sciences and Engineering, LLC","Mixon Drilling",null,"Perry, Heather / 6","DADE"]
["14","DESOTO","Arcadis Geraghty & Miller","NESCO",null,"Rhodes, Russ / 2","DESOTO"]
["15","DIXIE","Ardaman & Associates","Partridge Well Drilling",null,"Roberts, Michelle / 2","DIXIE"]
["16","DUVAL","ASC Geosciences. Inc.","Precision Drilling",null,"Ruscito, Rick / 6","DUVAL"]
["17","ESCAMBIA","Asset Recovery Group","Probe Domain",null,null,"ESCAMBIA"]
["18","FLAGLER","Cardno ATC","Prosonic Corporation",null,null,"FLAGLER"]
["19","FRANKLIN","Atlas Scientific Technologies","South Florida Testing and Drilling",null,null,"FRANKLIN"]
["20","GADSDEN","Barcor Enterprises","Stidham & Associates",null,null,"GADSDEN"]
["21","GILCHRIST","Barnes, Ferland and Associates","TransAmerican Drilling and Testing",null,null,"GILCHRIST"]
["22","GLADES","Battelle Memorial Institute","TRG",null,null,"GLADES"]
["23","GULF","BBL Environmental Services",null,null,null,"GULF"]
["24","HAMILTON","Bio-Tech 2000 (D.B.A. Gaudet Construction)",null,null,null,"HAMILTON"]
["25","HARDEE","Blasland, Bouck & Lee",null,null,null,"HARDEE"]
["26","HENDRY","Bock Environmental Services",null,null,null,"HENDRY"]
["27","HERNANDO","Bond Engineering",null,null,null,"HERNANDO"]
["28","HIGHLANDS","Bondurant Environmental Consultants",null,null,null,"HIGHLANDS"]
["29","HILLSBOROUGH","Branching Out",null,null,null,"HILLSBOROUGH"]
["30","HOLMES","Brown & Caldwell Consultants",null,null,null,"HOLMES"]
["31","INDIAN RIVER","BTEX Engineering",null,null,null,"INDIAN RIVER"]
["32","JACKSON","Butte",null,null,null,"JACKSON"]
[null,null,"ATC Group Services LLC"]
[null,null,"CARDNO"]
["33","JEFFERSON","Cameron-Cole",null,null,null,{"$f":"UPPER(B37)","v":"JEFFERSON"}]
["34","LAFAYETTE","Camp, Dresser & McKee",null,null,null,"LAFAYETTE"]
["35","LAKE","Carter Environmental Services",null,null,null,"LAKE"]
["36","LEE","CBM Environmental Services",null,null,null,"LEE"]
[null,null,"CDG Engineers & Associates, Inc."]
["37","LEON","CH2M Hill",null,null,null,"LEON"]
["38","LEVY","Chastain Skillman",null,null,null,"LEVY"]
["39","LIBERTY","Chem-Tel",null,null,null,"LIBERTY"]
["40","MADISON","Cherokee Enterprises",null,null,null,"MADISON"]
["41","MANATEE","Choctaw Engineering",null,null,null,"MANATEE"]
["42","MARION","Clark Environmental Services",null,null,null,"MARION"]
["43","MARTIN","CMD Associates",null,null,null,"MARTIN"]
["44","MONROE","Coastal Resource Management",null,null,null,"MONROE"]
["45","NASSAU","Cobb Environmental & Technical Services",null,null,null,"NASSAU"]
["46","OKALOOSA","Cody Ehlers Group",null,null,null,"OKALOOSA"]
["47","OKEECHOBEE","CRB Geological and Environmental Services",null,null,null,"OKEECHOBEE"]
["48","ORANGE","Creative Environmental Solutions",null,null,null,"ORANGE"]
["49","OSCEOLA","CTEC & Associates",null,null,null,"OSCEOLA"]
["50","PALM BEACH","Custom Solutions International",null,null,null,"PALM BEACH"]
["51","PASCO","Daley Environmental Services",null,null,null,"PASCO"]
["52","PINELLAS","Dames & Moore",null,null,null,"PINELLAS"]
["53","POLK","Delta Environmental Consultants",null,null,null,"POLK"]
["54","PUTNAM","DES-Ayres JV (formerly Jones Ayres JV)",null,null,null,"PUTNAM"]
["57","SANTA ROSA","DES Infrastructure & Environment, LLC",null,null,null,"SANTA ROSA"]
["58","SARASOTA","Dick Environmental Services",null,null,null,"SARASOTA"]
["59","SEMINOLE","E Sciences",null,null,null,"SEMINOLE"]
["55","ST. JOHNS","EA Engineering, Science and Technology",null,null,null,"ST. JOHNS"]
["56","ST. LUCIE","Earth Engineers DBA Heynen Teale Engineers",null,null,null,"ST. LUCIE"]
["60","SUMTER","Earth Science",null,null,null,"SUMTER"]
["61","SUWANNEE","Earth Systems",null,null,null,"SUWANNEE"]
["62","TAYLOR","Earth Tech",null,null,null,"TAYLOR"]
["63","UNION","East Coast Environmental",null,null,null,"UNION"]
["64","VOLUSIA","Ellis & Associates (E & A)",null,null,null,"VOLUSIA"]
["65","WAKULLA","Empire Environmental",null,null,null,"WAKULLA"]
["66","WALTON","Enecotech",null,null,null,"WALTON"]
["67","WASHINGTON","Engineered Environmental Solutions",null,null,null,"WASHINGTON"]
[null,null,"Engineering & Applied Science"]
[null,null,"Ensafe(Environmental & Safety Designs)"]
[null,null,"Enviro-Audit & Compliance"]
[null,null,"Envirocare"]
[null,null,"Enviro-Logical Solutions"]
[null,null,"Environmental Assessments & Consulting"]
[null,null,"Environmental Compliance Services"]
[null,null,"Environmental Consulting & Technology"]
[null,null,"Environmental Corp. of America"]
[null,null,"Environmental Directions"]
[null,null,"Environmental Engineering Consultants"]
[null,null,"Environmental Liability Management"]
[null,null,"Environmental Property Audits"]
[null,null,"Environmental Recovery Group"]
[null,null,"Environmental Remediation Service"]
[null,null,"Environmental Risk Management"]
[null,null,"Environmental Science & Engineering"]
[null,null,"Environmental Science & Technologies"]
[null,null,"Environmental Service & Technology Corporation"]
[null,null,"Environmental Services"]
[null,null,"Environmental Tactics"]
[null,null,"Environmental Technologies Group"]
[null,null,"Environmental Technologies Group"]
[null,null,"Environmental Testing & Consulting"]
[null,null,"Enviro-Pro-Tech"]
[null,null,"Envirosouth Technologies"]
[null,null,"Envirospec"]
[null,null,"Enviro-Test"]
[null,null,"Envirotrac (Limited)"]
[null,null,"EPAC Environmental Services"]
[null,null,"ERM Southeast"]
[null,null,"Evans Environmental & Geological Science"]
[null,null,"FGS"]
[null,null,"Florida Environmental Compliance Corp."]
[null,null,"Florida Environmental Engineering"]
[null,null,"Florida Environmental Regulation Specialists (FER)"]
[null,null,"Florida Geotechnical Engineering"]
[null,null,"Fortis Environmental Group"]
[null,null,"Foster Wheeler Environmental Corporation"]
[null,null,"FRS"]
[null,null,"Fuss & O'Neill"]
[null,null,"Gallet & Associates"]
[null,null,"Gannett Fleming"]
[null,null,"Gator Environmental"]
[null,null,"GEI Consultants"]
[null,null,"GHD"]
[null,null,"Geochemical Engineering"]
[null,null,"Geologic & Environmental Consultants"]
[null,null,"Geosolutions"]
[null,null,"Geosphere Technologies"]
[null,null,"GeoTec Services"]
[null,null,"Georgia Oilmen’s Services, Inc."]
[null,null,"Gillotti, Frione, and Assoc."]
[null,null,"Glasgow Equipment Service"]
[null,null,"GLE Associates"]
[null,null,"Golder Associates"]
[null,null,"Groundwater Environmental Services"]
[null,null,"H2O Environmental"]
[null,null,"Handex Consulting and Remediation Southeast"]
[null,null,"Harding ESE"]
[null,null,"Hartman & Associates"]
[null,null,"Hastings Environmental Consulting Group"]
[null,null,"Hayworth Engineering Science"]
[null,null,"Hi-Tech Environmental Consultants."]
[null,null,"HSA Engineers & Scientists"]
[null,null,"HSATechnical Services"]
[null,null,"HSW Engineering"]
[null,null,"Hydro-Environmental Associates"]
[null,null,"Hydro-Environmental Technology"]
[null,null,"Hydro-Logic Assoc."]
[null,null,"Hydrologic Associates USA"]
[null,null,"Hy-Tech Environmental Services"]
[null,null,"Imperial Testing Laboratories"]
[null,null,"Integrated Environmental Solutions"]
[null,null,"International Technology Corporation"]
[null,null,"J.A. Jones Environmental Services"]
[null,null,"J.J.Sosa & Associates"]
[null,null,"Jim Stidham & Associates"]
[null,null,"Jones, Edmunds & Associates"]
[null,null,"Keith and Schnars"]
[null,null,"Kimley-Horn and Associates"]
[null,null,"L.J. Nichols Enterprises"]
[null,null,"L.S. Sims & Associates"]
[null,null,"Lan Associates"]
[null,null,"Land Assessment Services"]
[null,null,"Landmark Consulting"]
[null,null,"Landscience"]
[null,null,"Langan Engineering and Environmental Services"]
[null,null,"Law Engineering & Environmental Services"]
[null,null,"Leggette, Brashears & Graham"]
[null,null,"LFR"]
[null,null,"MACTEC Engineering and Consulting"]
[null,null,"MACTEC Engineering and Consulting of Georgia"]
[null,null,"Madrid Engineering Group"]
[null,null,"Mallard"]
[null,null,"Marc Environmental Group"]
[null,null,"Martin O. Klein, P.A."]
[null,null,"Maxim Technologies"]
[null,null,"McCranie and Associates"]
[null,null,"MDM Services"]
[null,null,"Metcalf & Eddy"]
[null,null,"Metroplex Industries"]
[null,null,"Mortensen Environmental Services"]
[null,null,"Natural Resource Recovery Group"]
[null,null,"Nedatek"]
[null,null,"NOVA Consulting"]
[null,null,"Nutting Environmental of Florida"]
[null,null,"O & M"]
[null,null,"OES Environmental"]
[null,null,"Ogden Environmental & Energy Services"]
[null,null,"OHC Environmental Engineering"]
[null,null,"OHM Remediation Services Corp."]
[null,null,"Omega Environmental Services"]
[null,null,"Owen Ayres & Associates"]
[null,null,"P2 Environmental"]
[null,null,"Parsons Engineering Science Inc."]
[null,null,"Pensacola Environmental Services"]
[null,null,"Pentacore Resources"]
[null,null,"Petro Hydro"]
[null,null,"PI Environmental"]
[null,null,"Post, Buckley, Schuh & Jernigan"]
[null,null,"PPM Consultants"]
[null,null,"Professional Service Industries"]
[null,null,"Progressive Engineering & Construction"]
[null,null,"Progressive Environmental Consultants"]
[null,null,"Properties Environmental Assessment & Remediation"]
[null,null,"Qore"]
[null,null,"Qualified Technologies"]
[null,null,"REA Remedial Solutions"]
[null,null,"Redemption Environmental"]
[null,null,"Remtech"]
[null,null,"REP Associates"]
[null,null,"Reynolds, Smith and Hill"]
[null,null,"Rindt-McDuff Associates"]
[null,null,"RME Environmental"]
[null,null,"S&ME"]
[null,null,"Safety-Kleen Consulting"]
[null,null,"SCS Engineers"]
[null,null,"SDII-Global Corporation"]
[null,null,"Secor International"]
[null,null,"SEI Environmental"]
[null,null,"SESCO Group"]
[null,null,"Shaw Environmental"]
[null,null,"Site has no valid CDF at this time"]
[null,null,"Site Manager request for photos"]
[null,null,"Smith Technical Services"]
[null,null,"Solutech"]
[null,null,"Southeastern Environmental Audits"]
[null,null,"Stillwater Technologies"]
[null,null,"Streamline Environmental"]
[null,null,"Summit Envirosolutions"]
[null,null,"SunState Remediation Services"]
[null,null,"Tampa Bay Engineering"]
[null,null,"Tanktek "]
[null,null,"Task Environmental"]
[null,null,"Terra Tech Enterprises"]
[null,null,"Terra Vac"]
[null,null,"Terra-Com Environmental Consulting"]
[null,null,"Terraine"]
[null,null,"Tetra Tech FW"]
[null,null,"Tetra Tech NUS"]
[null,null,"Universal Engineering Sciences"]
[null,null,"Universal Solutions"]
[null,null,"URS Corporation"]
[null,null,"US Environmental Group"]
[null,null,"USL City Environmental Services"]
[null,null,"Value Environmental Services"]
[null,null,"Vanasse Hangen Brustlin"]
[null,null,"Versar"]
[null,null,"WES Environmental, LLC"]
[null,null,"Water and Air Research"]
[null,null,"Water Equipment Services"]
[null,null,"Water Resource Solutions"]
[null,null,"Water Restoration"]

{"sheet":"Sites","index":3,"n_rows":971,"n_cols":5,"rows_kept":971,"cut":false,"hidden":false,"merged":[]}
["028500347","CUZ'S ONE STOP SHOP-SANDERSON","US 90 & C.R. 127","SANDERSON",51]
["028500354","EXXON-TRUCK STOP","I-10 & 228","MACCLENNY"]
["028500359","FRASERS FOOD STORE","US 90 & CR 125","GLEN SAINT MARY"]
["028500363","CITGO-SANDERSON","",""]
["028500380","JORDAN RESIDENCE","26501 COUNTY ROAD 250","SANDERSON",51]
["028500386","L V HIERS INC-BULK PLT","253 FLORIDA AVE E","MACCLENNY"]
["028500392","TWIN BRIDGES COUNTRY STORE","15693 NORTH STATE ROAD 121","MACCLENNY",51]
["028500395","WILLIAMS MEATS & GROCERY","US HIGHWAY 90 WEST","SANDERSON",50]
["028626802","ALTMAN'S GROCERY","RT 2 BOX 625","GLEN SAINT MARY"]
["028732072","FDOC BAKER CORRECTIONAL INSTITUTION","8501 HAMPTON SPRINGS ROAD","PERRY",0]
["028733832","JACKSONVILLE LLC #8","257 W MACCLENNY AVE","MACCLENNY"]
["028735268","S&S FOOD STORE #34","SR 121 & I-10","MACCLENNY"]
["028944422","EXXON STATION","HIGHWAY 121 NORTH","MACCLENNY",54]
["029045921","SUNSHINE JR. #454","HIGHWAY 121 AND I-10","MACCLENNY",41]
["029046915","QUICK & HANDY #1","HIGHWAY 23A, NORTH","MACCLENNY",95]
["029805158","CSX TRANSPORTATION SPILL","LOWDER STREET","MACLENNEY",0]
["029806137","CITY OF SANDERSON","","",0]
["038500420","BARTA'S FOOD MART","","",50]
["038500433","PANAMA COVE INC PROPERTY","660 E 6TH ST","PANAMA CITY"]
["038500443","BROOK'S GROCERY","","",54]
["038500562","E Z SERVE #4011","5145 E HWY 98","PARKER"]
["038500618","MCCABE'S GROCERY","7437 EAST HIGHWAY 22","PANAMA CITY",36]
["038518768","EXPRESS LANE #5","714 EAST HIGHWAY 98","MEXICO BEACH",30]
["038520074","ARIZONA CHEMICALS","2 EVERITT AVENUE SOUTH","PANAMA CITY",55]
["038520377","BELLSOUTH TEL INC #36022 PNCYFLCA","6601 EAST HWY 22","PANAMA CITY"]
["038733798","GRACEVILLE OIL COMPANY","","",35]
["038736933","GAC CONTRACTORS, INC.","4116 NORTH HIGHWAY 231","PANAMA CITY",51]
["039102824","PARKER AUTO SERVICE","4540 E HWY 98","PARKER"]
["039200711","BALL PETROLEUM INC.","1706 MAPLE AVENUE","PANAMA CITY",0]
["039201909","DIVER'S DEN WAREHOUSE","","",35]
["039202144","DAN'S AUTO SERVICE","5213 EAST BUSINESS HIGHWAY 98","PANAMA CITY",45]
["039202406","BLAND SERVICE STATION","2417 EAST AVE","PANAMA CITY"]
["039300822","CHAVER FOWHAND","3101 NORTH HIGHWAY 77","PANAMA CITY",46]
["039400815","TONY STALNAKER CONSTRUCTION","2915 EAST AVE","PANAMA CITY"]
["039401044","GENE'S BAIT & TACKLE","","",41]
["048500770","EDWARD'S GROCERY","4105 COUNTY ROUTE 100","STARKE",0]
["048500774","BP #24695","1011 NORTH TEMPLE AVENUE","STARKE",57]
["048500803","SNACK & GAS #9 (A.K.A. STARKE FOOD MART)","620 SOUTH WALNUT STREET","STARKE",56]
["048500805","REGISTER OIL CO","308 S THOMPSON ST","STARKE"]
["048500813","THONI STATION","HWY 301","STARKE",30]
["048518917","LIL CHAMP #1013 (SPRINT #1013)","2158 N.TEMPLE AVENUE","STARKE",32]
["048518933","HANDY WAY FOOD STORE #2889","23702 US HWY 301","LAWTEY"]
["048842071","STARKE CITY-POWER PLT","CHURCH & CALL STS","STARKE"]
["048944693","TONY'S FOOD MARKET","786 US HWY. 100","STARKE",0]
["049046933","GRIFFIN INDUSTRIES INC-L V HIERS INC","HWY 221","HAMPTON",40]
["049101242","BROOKER GROCERY","HWY 18 & CR 235","BROOKER"]
["049201198","SEARS CATALOG MERCHANT","435 E MADISON ST","STARKE"]
["049400293","BUCKS GROCERY","3343 NW 178TH LOOP","STARKE",41]
["058501039","HANDY WAY #2236","","",51]
["068501727","7-ELEVEN STORE NO. 30007","",""]
["078502921","ABLE'S BARGAIN BARN","17844 N.E. SR 69","BLOUNTSTOWN",60]
["078502937","BP-BULK PLANT","706 W CENTRAL AVE","BLOUNTSTOWN"]
["078502938","BP MCDOUGALD'S","17313 MAIN ST. N.","BLOUNTSTOWN",60]
["078502942","HALLEY'S SERVICE STATION","239 NORTH MAIN STREET","BLOUNTSTOWN",0]
["078502945","JC'S CONVENIENCE STORE","25653 MAIN ST N & HWY 71","ALTHA"]
["078502961","MAGNOLIA SQUARE PARK","109 E CENTRAL AVE","BLOUNTSTOWN"]
["078502968","SCOTT'S FERRY GENERAL STORE","6648 SR 71 SOUTH","BLOUNTSTOWN",41]
["078518645","CALHOUN COUNTY ROAD DEPT.","CHARILE WOOD ROAD","BLOUNTSTOWN",41]
["078733041","BLOUNTSTOWN MOTORS INC","120 S MAIN ST","BLOUNTSTOWN"]
["078734874","FORMER WHITFIELD'S GROCERY","HIGHWAY 73","ALTHA",45]
["088502999","KING STREET ENTERPRISES","236 SOUTH TAMIAMI TRAIL","PUNTA GORDA",32]
["088519009","CIRCLE K #7409","11161 US HWY 41","PUNTA GORDA"]
["088519022","PRESCO FOOD STORE NO. 41","4821 PLACIDA ROAD","GROVE CITY",41]
["088519117","SO-SWEET GROVES","12390 BURNT STORE ROAD","PUNTA GORDA",31]
["089045849","AQUI ESTA SHELL","3035 TAMIAMI TRAIL","PUNTA GORDA",31]
["089046660","SHELL STATION","6117 DUNCAN RD.","PUNTA GORDA",40]
["098503073","FORMER CHEVRON #47377","102 HWY 41 SOUTH","INVERNESS",58]
["098503085","LIL CHAMP FOOD STORE #6107","6241 W CARDINAL ST","HOMOSASSA"]
["098503086","SPRINT #6184","2275 S SUNCOAST BLVD (US 19 N)","HOMOSASSA SPRINGS"]
["098503097","DISCOUNT AUTO PARTS","6850 WEST GULF TO LAKE HWY","CRYSTAL RIVER",50]
["098503098","QUALITY #185","806 NE US 19","CRYSTAL RIVER"]
["098503110","S & S FOOD & BEVERAGE","602 W MAIN ST","INVERNESS"]
["098503111","PETES PIER DOCKSIDE","558 NW 3RD AVE","CRYSTAL RIVER"]
["098503116","BP-LOU'S","55 N FLORIDA AVE","INVERNESS"]
["098518717","ST CLAIR OIL","105 GRACE ST","INVERNESS"]
["098518728","CRYSTAL RIVER CITY-PUBLIC WORKS","1000 NW 6TH AVE","CRYSTAL RIVER"]
["098735894","VALENTINE ROOKS FARM PROPERTY","7725 S. PLEASANT GROVE ROAD","INVERNESS",45]
["099101140","COMMERCIAL CARRIERS CORPORATION","6659 NORTH TALLAHASSEE ROAD","CRYSTAL RIVER",0]
["099807558","CRYSTAL RIVER STATE PARK","3266 N SAILBOAT AVE","CRYSTAL RIVER"]
["108503213","SUNSHINE FOOD MART #67 (AKA SUNRISE #10)","158 BLANDING BOULEVARD","ORANGE PARK",77]
["108503222","PANTRY (SPRINT) #2643","",""]
["108503235","FIRST COAST ENERGY #1073","11 BLANDING BLVD","ORANGE PARK"]
["108503249","HATCHERS TIRE & SERVICE","2355 BLANDING BOULEVARD","MIDDLEBURG",40]
["108503251","CARQUEST (FORMER HATCHER AUTO PARTS)","25 NORTH ORANGE AVENUE","GREEN COVE SPRINGS",0]
["108503254","LIL' CHAMP #6100 DBA SPRINT #100","1690 WELLS ROAD","ORANGE PARK",31]
["108503258"," LIL' CHAMP # 6013 (LIL' CHAMP #13)","3541 U.S. HIGHWAY 17 NORTH","GREEN COVE SPRINGS",81]
["108503294","FORMER FINA STATION #6637","",""]
["108503304","GATE #1442","",""]
["108519253","HANDY WAY #2112","",""]
["108519254","FIRST COAST ENERGY SHELL #3040","",""]
["108519265","STONERIDGE FARMS, INC. (FLORIDA SOLITE)","3000 CR 209A","GREEN COVE SPRINGS",41]
["108519270","SPRINT # 6122 (LIL' CHAMP #6122)","2682-88 BLANDING BLVD","MIDDLEBURG",41]
["108519271","ORANGE PARK FIRE DEPARTMENT","",""]
["108521070","SPRINT #6501","6935 US HWY 17","GREEN COVE SPRINGS"]
["108626901","HIGHLAND STATION","1359 US HIGHWAY 301","LAWTEY",45]
["108628066","SUNRISE NISSAN (AKA MIKE SHAD NISSAN OF ORANGE PARK)","1565 WELLS ROAD","ORANGE PARK",0]
["108628088","TYSON FOODS HATCHERY","","",0]
["108628090","SMOKERS EXPRESS #6290","3128 BLANDING BLVD","MIDDLEBURG"]
["108628503","TARMAC FLORIDA - ORANGE PARK RMC","455 FAIRWAY DRIVE","DEERFIELD BEACH",0]
["108732890","BRADFORD COUNTY SCHOOL BOARD-UNION VO-TECH SCHOOL","SR 230, CAMP BLANDING","STARKE",0]
["108733512","CLAY HILL GROCERY","6094 CR 218","MAXVILLE"]
["108733981","SPRINT #6042","2584 HWY 220","DOCTORS INLET"]
["108734733","FORMER ELG VENTURES PROPERTY","2044 PARK AVENUE","ORANGE PARK",46]
["108841464","ROBERT'S OLDSMOBILE & ISUZU","605 WELLS ROAD","ORANGE PARK",0]
["108944633","HANSON PIPE & PRODUCTS","","",0]
["109045941","ISLAND FOOD STORE #109","3540 US HIGHWAY 17 S.","GREEN COVE SPRINGS",0]
["109063815","GIANT #366","2449 BLANDING BLVD","MIDDLEBURG"]
["109200430","GUSTAFSON'S FAMILY ENTERPRISES, INC.","",""]
["109201645","HESS #09547","1010 HWY 16 E","GREEN COVE SPRINGS"]
["109300836","FORMER LEE FIELD NAVAL AIR STATION, AREAS 1,2,3,4","","GREEN COVE SPRINGS",0]
["109400489","WHITEY'S FISH CAMP","2032 COUNTY ROAD 220","ORANGE PARK",0]
["109401409","MOBRO MARINE","606 STATE ROUTE 16","GREEN COVE SPRINGS",0]
["109401510","ORANGE PARK MALL - JC PENNEY SITE","1910 WELLS ROAD","ORANGE PARK",0]
["109600288","FLASH FOODS NO. 184","4000 EVERETT AVENUE","MIDDLEBURG"]
["109802756","MIMS PROPERTY","514 RIVER RD","ORANGE PARK"]
["109805091","HESS STATION NO. 09562","1545 BLANDING BOULEVARD","MIDDLEBURG",26]
["109805140","FORMER SOUTH TRUST BANK","1978 PARK AVENUE","ORANGE PARK",0]
["118503334","CIRCLE K #7331","",""]
["118518089","SOUTHERN CENTERS AT IMMOKALEE LC","1108 NORTH 15TH STREET","IMMOKALEE",54]
["118518092","UNIVERSAL MARKET","402 WEST DELAWARE","IMMOKALEE",71]
["118518167","HANDY FOOD STORE #77","1812 LAKE TRAFFORD ROAD & 19TH STREET","IMMOKALEE",30]
["118518178","KWIK STOP/FORMER 7-ELEVEN STORE NO. 22188","110 BARFIELD DRIVE SOUTH","MARCO ISLAND",72]
["118518187","SUNSHINE #30011","3300 N. TAMIAMI TRL","NAPLES",60]
["118518220","GOLDEN GATE BP","11825 COLLIER BLVD","NAPLES",65]
["118518233","CHEVRON #47723-RICHARDS","109 9TH STREET SOUTH","NAPLES",31]
["118518263","EXXON STATION","917 WEST MAIN","IMMOKALEE",76]
["118518282","HANDY FOOD STORE #91","830 MAIN STREET","IMMOKALEE",31]
["118518283","HANDY FOOD STORE #75","2902 LAKE TRAFFORD ROAD","IMMOKALEE",56]
["118518287","HANDY FOOD STORE #92","401 1ST ST S.(WEST DELAWARE AVENUE)","IMMOKALEE",60]
["118518290","SHELL-STRICKS","520 E. NEW MARKET ROAD","IMMOKALEE",59]
["118518332","SITE FOOD MART #105","4612 9TH ST N.","NAPLES",75]
["118518334","HANDY FOOD STORE #50","417 NEW MARKET ROAD WEST","IMMOKALEE",32]
["118519227","MOBIL R/S #11337","12751 TAMIAMI TRL E.","NAPLES",72]
["118520197","HESS #09462","2100 GOODLETTE RD N","NAPLES",71]
["118521250","DAVIS OIL COMPANY","EAST END OF NEW MARKET ROAD","IMMOKALEE",55]
["118629389","DAVIS SERVICE CENTER","524 E MAIN ST","IMMOKALEE",56]
["118629394","STATION #40","1441 PINE RIDGE ROAD","NAPLES",71]
["118732539","HESS # 09461","2055 PINE RIDGE RD","NAPLES",100]
["118837333","ACE FOOD MART","4920 GOLDEN GATE PKWY","GOLDEN GATE",60]
["118837692","HESS # 09465","2375 STATE ROAD 951","NAPLES",92]
["118839176","COMBS OIL BULK PLANT","525 EAST MAIN STREET","IMMOKALEE",63]
["118839708","SHELL SERVICE STATION","6615 DUDLEY DRIVE","NAPLES",31]
["118944898","E'S COUNTRY STORES LLC","21 GOLDEN GATE BLVD.","NAPLES",91]
["119805470","KENAN TRANSPORT COMPANY OVERTURN INCIDENT","~ 4 MILES N OF I-75 (ALLIGATOR ALLEY)","SUNNILAND"]
["128503347","CITGO STATION","4770 US HWY 90 W","LAKE CITY"]
["128503350","FORMER AMOCO","127 S MARION ST","LAKE CITY"]
["128503363","CHEVRON-G W HUNTER #75-47","I-75 & HWY 47","LAKE CITY"]
["128503369","CHEVRON-G W HUNTER #10-441","US HWY 441 N & I-10","LAKE CITY"]
["128503381","JOHNSON & JOHNSON #32","US 41 S & I-75 EXIT 80","LAKE CITY"]
["128503410","FL DEPT OF TRANSPORTATION SITE (AKA L.C.CLUSTER)","STATE ROAD 47 & I-75","LAKE CITY",35]
["128503438","LAKE CITY-MUNICIPAL AIRPORT","US HWY 90 E","LAKE CITY"]
["128503499","FAST TRACK #407","I-10 & US 41","LAKE CITY",45]
["128519074","AMOCO-HUBERT NETTLES (AKA LC CLUSTER)","STATE ROAD 47 & I-75","LAKE CITY",46]
["128519091","BP-FLOYDS","US 27 & BRYAN ST","FORT WHITE"]
["128519093","AMERICAN GAS & GROCERY","4637 E US HWY 90","LAKE CITY"]
["128519095","UNION 76-BEDENBAUGHS (AKA FORMER BEDENBAUGH'S UNION 76)","924 SW MAIN BLVD","LAKE CITY",100]
["128519148","DIVISION OF FORESTRY-LAKE CITY","US  HIGHWAY 90","LAKE CITY",65]
["128519154","S & S FOOD STORE #27 (AKA LC CLUSTER)","STATE ROAD 47 & I-75","LAKE CITY",86]
["128519194","FDOT - LAKE CITY DISTRICT OFFICE","1901 SOUTH MARION STREET","LAKE CITY",30]
["128519206","S&S FOOD STORE #29","HWY 252 1/2 MI PINEMOUNT","LAKE CITY"]
["128519211","A-B DISTRIBUTORS","US HIGHWAY 41 SOUTH & MICHIGAN ST","LAKE CITY",52]
["128519213","MARATHON STATION-LAKE CITY HESS","2211 HWY 90 & GWEN LAKE BLVD","LAKE CITY",57]
["128520194","FAST TRACK #240","PRICE CREEK ROAD & SR 100","LAKE CITY",86]
["128629157","PEPSI DISTRIBUTION FACILITY","",""]
["128734537","TEXACO 24-033-015 (FORMER)","I-10 & US 41","LAKE CITY",45]
["128841154","S.M. MAAPS, INC., COUNTRY STATION","RT 3 BOX 176A","LAKE CITY",44]
["128841414","COCHRAN FOREST PRODUCTS","OKINAWA RD","LAKE CITY"]
["128841749","LAW'S SEAFOOD","760 N. MARION STREET","LAKE CITY",110]
["128944278","S & S FOOD STORE #37","U.S. HIGHWAY 441 AND I-10","LAKE CITY",80]
["129046234","RENTZ STATION","810 NE WASHINGTON ST","LAKE CITY"]
["129200784","FORMER LAKE CITY NAVAL AIR STATION","","",0]
["129700446","CORBITT MANUFACTURING","GUERDON ROAD","LAKE CITY",0]
["129802464","THE WARD BLOCK-LAKE CITY","320 N.COLUMBIA STREET","LAKE CITY",30]
["129805498","THOMPSON PROPERTY","","",0]
["129807191","ICHETUCKNEE SPRINGS STATE PARK","CR 240 & SR 47","LAKE CITY"]
["138503931","DT SUPER STAR CORP","127 NW 20TH STREET","MIAMI",11]
["138504579","AMOCO SERVICE STATION #97","",""]
["138622359","SNAPPER CREEK SERVICE PLAZA","","",31]
["139102396","MIA BLDG. #3048","","",0]
["148520849","PEACE RIVER CITRUS PRODUCTS","4104 HIGHWAY 72","ARCADIA",0]
["148520855","CIRCLE K #7136","1401 E OAK ST","ARCADIA"]
["148521214","A J PETROLEUM LLC #1133","2009 SE HWY 70","ARCADIA"]
["148626279","DEPT OF JUVENILE JUSTICE-DESOTO JUVENILE FACILITY","5871 SE HWY 31","ARCADIA"]
["148626315","BP ARCADIA","102 NORTH BREVARD AVE","ARCADIA",30]
["148626412","STOP & GO","4991 SE HWY 31","ARCADIA",41]
["148944407","CIRCLE K #7082","516 S BREVARD","ARCADIA"]
["149200475","FORMER PEGGY'S FLOWERS & GIFTS (ARCADIA PAWN)","908 E OAK ST.","ARCADIA",81]
["149201618","GIANGUZZO PROPERTY","HWY 31","ARCADIA",51]
["149201624","FORMER SMITH & MIDWINTER-STEANE PROPERTY","1036 WEST HICKORY STREET","ARCADIA",40]
["149802525","FORMER SHELL","43 SOUTH DAKOTA AVENUE","ARCADIA",0]
["158506566","MILLER'S MARINA","MCKINNEY STREET","SUWANNEE",10]
["158506582","PINNER OIL BULK PLANT","U.S. HIGHWAY 19 NORTH","CROSS CITY",10]
["158838434","SNELLGROVE PROPERTY / FMR. LOGGERS","U.S. 19 NORTH","CROSS CITY",45]
["158839661","KING'S OIL & TIRE","","",0]
["158841283","JON'S MARINA, INC.","173 CANAL STREET","SUWANNEE",0]
["158944081","ANDERSON COLUMBIA COMPANY INC.","HIGHWAY 349 NORTH","OLD TOWN",45]
["158945522","FORMER D'S COUNTRY STORE, AKA ROLLISON PROPERTY","","",0]
["168506784","CITGO-LEES","6005 SAINT AUGUSTINE ROAD","JACKSONVILLE",50]
["168507281","MOON'S GARAGE","8139 WEST BEAVER STREET","JACKSONVILLE",34]
["168507440","AP XPRESS","3621 PARK STREET","JACKSONVILLE",31]
["168507567","RIVERWALK SERVICE STATION","",""]
["168521372","FIRST COAST ENERGY #1068","",""]
["168521440"," JAX FIRE STATION #30","","",0]
["168521577","PCS-PHOSPHATE WHITE SPRINGS","1301 WIGMORE STREET","JACKSONVILLE",30]
["168629510","CITY OF JACKSONVILLE-EMERGENCY PREPAREDNESS CENTER","107 MARKET STREET","JACKSONVILLE",0]
["168838124","HART HAVEN STATION","7236 W. BEAVER ST.","JACKSONVILLE",41]
["169802300","SPARK'S PROPERTY","514-516 SOUTH EDGEWOOD AVENUE","JACKSONVILLE",0]
["178507782","TOM THUMB FOOD STORES #120","10398 N DAVIS HWY","PENSACOLA",30]
["178507806","TOM THUMB FOOD STORE #87","6930 PINE FOREST RD.","PENSACOLA",30]
["178507828","BIRITE CHEVRON (FMR DEAN'S CHEVRON)","7933 CENTURY BLVD","CENTURY",30]
["178507840","DIAMONDS J&J OF NW FL","1430 N. CENTURY BLVD","MCDAVID",30]
["178507925","RK ALLEN OIL CO INC. AKA MAJOR OIL CO., INC.","723 WEST MAIN STREET","PENSACOLA",30]
["178507933","BP STATION #24665","7945 PINE FOREST ROAD","PENSACOLA",30]
["178507935","ADKISON'S BP SERVICE STATION","2800 E. CERVANTES STREET","PENSACOLA",30]
["178508025","GROOVIN NOOVIN'S STORE #119 (FORMER MINI MART - MCVAY)","2700 GULF BEACH HIGHWAY","PENSACOLA",30]
["178508088","SCHNEIDER PROPERTY","5490 MORGAN ROAD","WALNUT HILL",30]
["178508107","GRANDE DRIVE PARTERSHIP PROPERTY","61 BRENT LANE","PENSACOLA",30]
["178508141","STANDARD-PEADEN'S","3000 N. 12TH AVE.","PENSACOLA",30]
["178508167","FORMER THONI STATION","2912 EAST CERVANTES STREET","PENSACOLA",30]
["178508196","DAVE HOWELL TIRES","9890 NORTH PENSACOLA BOULEVARD","PENSACOLA",30]
["178519918","TOM THUMB FOOD STORE #141","2200 W NAVY BLVD","PENSACOLA",30]
["178519934","FORMER SUNCOAST FORD TRUCK SALES, INC.(BOB TYLER TOYOTA)","7201 PENSACOLA BLVD.","PENSACOLA",30]
["178519973","HICK'S TRANSPORTATION CO.","3233 N. MARKET STREET","PENSACOLA",30]
["178520023","FEDERAL EXPRESS","6210 NW ST","PENSACOLA"]
["178521274","PENSACOLA CITY-OLD POLICE STATION (INSTITUTE FOR HUMAN & MACHINE COGNITION (IHMC))","40 S ALCANIZ ST.","PENSACOLA",30]
["178626026","ESCAMBIA GEORGE STONE TECHNICAL SCHOOL","2400 LONGLEAF DRIVE","PENSACOLA",30]
["178626029","HAPPY STORE","554 S NAVY BLVD","PENSACOLA",30]
["178626838","CITY OF PENSACOLA PROPERTY (FORMER)","",""]
["178626923","STANDARD DISTRIBUTING CO.","375 N 9TH AVE","PENSACOLA",30]
["178627158","GROOVIN-NOOVIN #111","4515 MOBILE HIGHWAY","PENSACOLA",30]
["178628793","FORMER FINA-PINE FOREST","6853 PINE FOREST ROAD","PENSACOLA",30]
["178732495","TOM THUMB FOOD STORE #21","7040 HWY 98 W","PENSACOLA",30]
["178736731","WARD EICHER FARM","6680 KANSAS ROAD","WALNUT HILL",30]
["178736899","WENGER FARM","5220 MORGAN RD.","WALNUT HILL",30]
["178837511","MININGER PROPERTY","6890 HWY 97","WALNUT HILL",30]
["178842324","USA CAR WASH","3515 N. PACE BLVD.","PENSACOLA",30]
["178842325","MCABEE-SCOTT CPA","801 W. GARDEN ST.","PENSACOLA",30]
["178942857","JIM'S PAINT & BODY SHOP","1211 N. 48TH AVE.","PENSACOLA",30]
["178942872","WALNUT HILL FARM SUPPLY","20 S. HWY 99","WALNUT HILL",30]
["178942939","MENNONITE CHURCH","6840 HIGHWAY 97","WALNUT HILL",30]
["178943055","BRENTWOOD FAMILY HAIR CARE","4801 N. PALAFOX STREET","PENSACOLA",30]
["178943059","JACK LEE BUICK (FORMER)","6385 PENSACOLA BLVD","PENSACOLA",30]
["178943451","JANTZ PROPERTY","440 HWY 99 SOUTH","WALNUT HILL",30]
["178944039","E B MININGER PROPERTY","6910 HWY 97","WALNUT HILL",30]
["179046605","WENGER JOHN FARM","4260 HWY 99A","WALNUT HILL",30]
["179046799","FORMER ALMA GRIMES FARM","4300 GRIMES LANE","WALNUT HILL",30]
["179046801","PETE MOORE CHEVROLET USED CARS (BILL HAVEN USED CARS)","732 W. GARDEN ST.","PENSACOLA",30]
["188508255","MARINELAND PARK OF FLORIDA- MARINA","9507 OCEAN SHORE BOULEVARD","MARINELAND",12]
["188519034","BULOW RV RESORT CAMPGROUND","3345 OLD KINGS ROAD SOUTH","FLAGLER BEACH",0]
["188519049","BUNNELL MAINTENANCE YARD","","",0]
["188628128","PALM HARBOR GOLF COURSE MAINTENANCE FACILITY","20 PALM HARBOR DRIVE","PALM COAST",9]
["188628131","FLORIDA WATER SERVICES MAINTENANCE YARD","2 UTILITY DRIVE","PALM COAST",0]
["188839694","MARINELAND CAMP STORE","9507 OCEAN STORE BLVD.","MARINELAND",0]
["188840540","THE PANTRY #1233","500 MOODY BLVD","BUNNELL",50]
["189200908","MARINELAND PARK OF FLORIDA- FISH HOUSE","9507 OCEAN SHORE BOULEVARD","MARINELAND",12]
["189802814","CONNIE BOYLE REAL ESTATE","819 NORTH ATLANTIC AVENUE","FLAGLER BEACH",0]
["189804126","PINNACLE PROFESSIONAL PARK","SR 100 AND SEMINOLE WOODS PARKWAY","FLAGLER BEACH",0]
["189806974","BUNNELL CYPRESS COMPANY","295 SAWGRASS ROAD","BUNNELL"]
["198508295","EXPRESS LANE #89 (FORMER EZ SERVE #4385)","FRANKLIN AND PINE STREETS","ST. GEORGE ISLAND",7]
["198841561","EXPRESS LANE #14","241 US HWY 98","EASTPOINT"]
["199103659","ISLAND VIEW MOTEL","1714 HIGHWAY 98 EAST","CARRABELLE",45]
["208508354","TRIPLE D COUNTRY STORE","5414 SYCAMORE RD","QUINCY"]
["208508357","FLETCHERS STATION","HWY 12","GREENSBORO"]
["208508358","EXPRESS LANE #28","1141 W JEFFERSON ST","QUINCY"]
["208508366","HINSON OIL CO-BULK PLANT","326 SOUTH JACKSON STREET","QUINCY",56]
["208508373","LYNS COUNTRY STORE","4 MILES S OF HAVANA HWY 27","HAVANA"]
["208508387","JAM FOOD #1","HWY 12","GREENSBORO"]
["208508393","SUNSET MART","650 S ADAMS ST","QUINCY"]
["208508415","MCDANIEL TRUCKING CO","HIGHWAY 27 NORTH","HAVANA",60]
["208508432","EXPREZIT #605","2982 PAT THOMAS HIGHWAY","QUINCY",30]
["208508466","FORMER PONDEROSA-STATE LINE TRAVEL CENTERS, INC.","11341 FLA-GA HIGHWAY","HAVANA",41]
["208508470","MARTINS STATION","302 W 9TH AVE","HAVANA"]
["208519561","QUINCY CITY-BYRD LANDFILL ON SELMAN RD.","SELMAN ROAD","QUINCY",26]
["208519568","QUINCY CITY","CITY WAREHOUSE- N ADAMS ST","QUINCY"]
["208519720","STRICKLAND CONTRACTING CO.","1845 WEST JEFFERSON STREET","QUINCY",25]
["208733545","HAVANA FORD INC","302 MAIN ST","HAVANA"]
["208839740","SPOT FREE CAR WASH","215 SOUTH MAIN STREET","HAVANA",56]
["208839862","THOMPSON GENERAL MERCHANDISE","U.S. 90","GRETNA",51]
["208841275","INLAND FOOD STORE #229","1134 W JEFFERSON ST","QUINCY"]
["208841559","EXPRESS LANE # 11","GREEN AVE & SELMAN STREET","GREENSBORO",71]
["208945519","CSX TRANSPORTATION","1100 S MAIN ST","CHATTAHOOCHEE"]
["209101582","FIVE STAR OIL CO PROPERTY","1204 W JEFFERSON ST","QUINCY"]
["209201605","BILLS BAIT & TACKLE","1205 W JEFFERSON ST","QUINCY"]
["209201730","DUTTON AUTO PARTS","US HWY 27 N & 5TH AVE","HAVANA"]
["209602349","PLANTERS EXCHANGE INC","204 2ND ST NW","HAVANA"]
["218508495","CARPORT #6","414 W. WADE STREET","TRENTON",0]
["218842323","TEXTILE TOWN","7860 US HIGHWAY 19","FANNING SPRINGS",80]
["218943647","BP - PAPAW'S","7050 S.E. STATE ROAD 26","TRENTON",55]
["228508540","MOOREHAVEN SHELL","HWY 27","MOORE HAVEN"]
["228944241","DEEM INVESTMENTS","US 27","PALMDALE",55]
["238508585","FILLUPS #8013, FORMER SING/AMOCO","609 MONUMENT AVE.","PORT ST. JOE",31]
["238508591","RAFFIELD FISHERIES","1624 GROUPER AVE.","PORT ST. JOE",31]
["238508596","ONE STOP-STROUD'S","DALKEITH ROAD AND STATE HIGHWAY 71 SOUTH","WEWAHITCHKA",45]
["238519874","SUBWAY (FORMER BP SAMMY'S)","101 1ST STREET","PORT ST. JOE",31]
["238629036","JR. FOOD MART #226","STATE ROAD 71","WEWAHITCHKA",60]
["238736146","RAINBOW FOODS","210 HIGHWAY 98 NORTH","PORT SAINT JOE",31]
["238944483","DALKEITH ROAD BAIT & VARIETY","581 HWY 381 H VILL","WEWAHITCHKA"]
["239103680","FORMER ST. JOE MOTOR COMPANY","322 MONUMENT AVE.","PORT ST. JOE",31]
["248508626","BP-ADAM'S","SR 129 & I-75","JASPER"]
["248508631","JOHNSON & JOHNSON #3","HWY 6 & I-75","JASPER",41]
["248508649","FAST TRACK #403","870 HIGHWAY 6 WEST","JASPER"]
["248508660","STEVE'S STOP & SHOP #1","HWY 41","WHITE SPRINGS"]
["248630168","FORMAL COASTAL MART NO. 407","41 SYCAMORE STREET","JASPER",8]
["248630170","RACEWAY #845","8246 HIGHWAY 6","JASPER",45]
["249700866","CHEVRON DAVIS-STEVES AUTO REPAIR","US 41 & 3RD ST","WHITE SPRINGS"]
["249806032","HOBGOOD/ESP WAREHOUSE-JASPER","",""]
["268508678","CLEWISTON MARINA II INC. DBA SCOTT MARTIN'S ANGLER'S MARINA","910 OKEECHOBEE BLVD","CLEWISTON",36]
["268520168","MERIT PETROLEUM COMPANY","139 HICKPOOCHEE STREET","LA BELLE",96]
["268520170","TAYLORS COUNTRY STORE","SR 29","FELDA",41]
["268520172","HANDY FOOD STORE #82","550 N BRIDGE STREET","LA BELLE"]
["268520175","MERIT SHELL","141 HICKPOOCHEE STREET","LA BELLE",96]
["268735900","KUNTRY KUBBARD TRUCK STOP","HWY 29 S","LA BELLE"]
["269101748","HENDRY CNTY PROFESSIONAL CENTER","30 SOUTH MAIN ST","LA BELLE"]
["269401644","JACK M.BERRY CONGEN GROVE","3888 CONGEN ROAD","ALVA",41]
["278508729","WESCO #23-41","11712 BROAD STREET","BROOKSVILLE",45]
["278508731","EXXON 5285","30435 CORTEZ BOULEVARD","BROOKSVILLE",80]
["278508735","WILKES OIL CO INC","575 S BROOKSVILLE AVE","BROOKSVILLE"]
["278508778","S & B GO INC-BULK PLT","335 SMITH ST","BROOKSVILLE"]
["278508790","FORMER AMIN JIFFY #119","4132 DELTONA BLVD","SPRING HILL",30]
["278508828","PRESTO FOOD STORE #17","18660 HIGHWAY 50","BROOKSVILLE, FLORIDA",65]
["278508838","RIVER OAKS MARKET","CR 476","NOBLETON"]
["278508843","CIRCLE K #7508","3275 BROAD STREET","BROOKSVILLE",55]
["278508844","SPRINGHILL AMOCO  (SUN COAST #111)","1394 COMMERIAL WAY","SPRING HILL",32]
["278508845","KEN'S SPRING HILL SERVICE CENTER","11175 SPRING HILL DRIVE","SPRING HILL",31]
["278508847","SPRINGSTEAD OIL CO","533 S BROOKSVILLE AVE","BROOKSVILLE"]
["278508857","CHEVRON-BROOKSVILLE #755","717 S BROAD ST","BROOKSVILLE"]
["278508859","SHOP & SAVE DISCOUNT BEV & FOOD STORE","351 PONCE DE LEON BLVD","BROOKSVILLE",30]
["278520256","COMMERCIAL CARRIER CORP.","18820 CORTEX BLVD","BROOKSVILLE",44]
["278520264","LAKE ORIOLE RANCH","8481 CROOM RITAL ROAD","BROOKSVILLE",45]
["278521963","CIRCLE K #00566","802 US HIGHWAY 41","BROOKSVILLE",95]
["278626273","PEPSI BOTTLING GROUP","490 CHAMPION DRIVE","BROOKSVILLE",33]
["278626277","HESS #09403","1950 JEFFERSON","BROOKSVILLE",65]
["278732358","SAV-U-GAS","562 BROAD ST","MASARYKTOWN"]
["278733581","HESS #09405","18635 CORTEZ BOULEVARD","BROOKSVILLE",31]
["279101256","DANIEL PROPERTY","CR 572 & CR 541","BROOKSVILLE",45]
["279200253","CHILDERS PROPERTY","US 41 NORTH & CR 476","BROOKSVILLE",30]
["279201021","SPRINGSTEAD PROPERTY","SR 41 S & VFW RD","BROOKSVILLE"]
["279201289","WALTON PROPERTY","202 WEST BROAD STREET","BROOKSVILLE",60]
["279202364","HUNGRY THYME CAFÉ","13 S. BROOKSVILLE AVENUE","BROOKSVILLE",60]
["279807778","BAXLEY OIL COMPANY","",""]
["288629375","GATE #1204","300 US HIGHWAY 27 NORTH","SEBRING",55]
["298735902","JWH LIMITED","623 EVERS STREET","PLANT CITY",25]
["308509096","D & M QUIK STOP","104 E HWY 90","BONIFAY"]
["308509097","COOKS GROCERY","3386 DOUGLAS FERRY ROAD","BONIFAY",41]
["308509102","B&B TRADING POST","HWY 79","ESTO"]
["308509102","B&B TRADING POST","HWY 79","ESTO"]
["308509103","EVANS GROCERY","SR 2 & 179A","WESTVILLE"]
["308509124","MILLER AUTO MART","224 WEST HIGHWAY 90","BONIFAY",70]
["308509130","EXPREZIT! # 717","HIGHWAY 81 SOUTH & I-10","PONCE DE LEON",31]
["308509135","SOUTHERN EXPRESS #4","2015 SOUTH WAUKESHA STREET","BONIFAY",46]
["308518460","HOLMES COUNTY SCHOOL BOARD - BETHLEHEM","ROUTE 3, BOX 385","BONIFAY",41]
["308518494","HOLMES COUNTY SCHOOL BOARD - POPLAR SPRINGS SCHOOL","HIGHWAYY 173 SR 2","BONIFAY",45]
["308628913","INLAND FOOD STORE #290","102 W HWY 90 & HWY 79","BONIFAY"]
["308630158","CURT MILLER OIL CO INC","224 WEST HIGHWAY 90","BONIFAY",72]
["308840737","MOTLEY'S MALL","1959 HWY 2","WESTVILLE"]
["309045563","VILLAGE GROCERY","1466 HIGHWAY 177","BONIFAY",41]
["309100162","FORMER WEST FLORIDA AUTO PARTS","HWY 90","BONIFAY"]
["309100432","BUSH AUTO","HWY 90","BONIFAY"]
["309100630","ROSS PROPERTY","HIGHWAY 173","GRACEVILLE",45]
["309102109","COOK AUTOMOTIVE INC","103 E HWY 90","BONIFAY"]
["309103537","CURRY STATION","203 N WAUKESHA ST","BONIFAY"]
["309200007","PINE LOG GROCERY","1604 N HWY 81","WESTVILLE"]
["309201144","NEW SOUTH EMPORIUM","CR 179A & 181","WESTVILLE",76]
["309201654","FORMER OWENS GROCERY","1849 N. HWY. 79","BONIFAY",41]
["309201657","PAIGES BBQ","HWY 79","BONIFAY"]
["309201790","SEMINOLE COLLISION","1104 EAST HIGHWAY 90","BONIFAY",46]
["309201792","ANN'S CORNER BAR","1173 HIGHWAY 171","GRACEVILLE",55]
["309201796","BENNY HALL PROPERTY","HWY 90 & SR 81","PONCE DE LEON"]
["309201974","HUT GROCERY","3751 HWY 2","GRACEVILLE",41]
["309202080","IVA P CAIN","HWY 2 & HWY 175","BONIFAY",31]
["309202146","HANCOCK, LEWIS","3315 HWY 2","BONIFAY",41]
["309300272","GENERAL MERCHANDISE POZO HOUSE","2128 WEST HIGHWAY 90","WESTVILLE",76]
["309601106","BONIFAY DRUG CO INC","204 N WAUKESHA ST","BONIFAY"]
["318736130","TEXACO STATION #100786 (FORMER)","617 US HIGHWAY 1","SEBASTIAN",0]
["328509393","CANNON #5","5253 HWY 231","CAMPBELLTON",60]
["328509394","SOUTHERN EXPRESS #10","4804 HIGHWAY 90","MARIANNA",56]
["328509407","EXPREZIT! #609","3945 KYNESVILLE ROAD","MARIANNA",31]
["328509467","BP-GRACEVILLE","501 COTTON ST","GRACEVILLE"]
["328509482","FILLUPS FOOD STORES #7011","4062 W. LAFAYETTE STREET","MARIANNA",60]
["328509485","HUDSONS GROCERY","HWY 231","CAMPBELLTON"]
["328509573","BP CAMPBELLTON","5256 HWY 321","CAMBELLTON",60]
["328509652","TOM THUMB FOOD STORE #55","3008 JEFFERSON ST.","MARIANNA",30]
["328509654","TOM THUMB FOOD STORE #53","4189-A W LAFAYETTE ST","MARIANNA"]
["328509656","GAUSE STORE","816 HIGHWAY 90 EAST","MARIANNA",56]
["328520313","A & S FOODMART","4255 SOUTH ST","MARIANNA"]
["328520334","GRACEVILLE MINI STORAGE","709 COTTON STREET","GRACEVILLE",60]
["328626097","GRACEVILLE CITY- CITY HALL","865 6TH AVENUE","GRACEVILLE",31]
["328626104","JACKSON CNTY SCHOOL BD-GRACEVILLE ELEM","5331 ALABAMA ST","GRACEVILLE"]
["328626115","DIVISION OF FORESTRY MARIANNA W C","OLD COTTONDALE RD APTS","MARIANNA"]
["328629739","PO-BOY","CORNER US 90 & HWY 69","GRAND RIDGE"]
["328630157","JACKSON CNTY-ROAD DEPT II","2828 OWENS ST","MARIANNA"]
["328731964","RACE MART #2","5392 10TH ST","MALONE"]
["328732418","FDOT-GLOVER'S CHEVRON","3396 STATE RD. 71","MARIANNA",0]
["328732812","CHEVRON-K W SMITH","5388 10TH ST","MALONE"]
["328733797","MO JO STATION","1799 GEORGIA ST","ALFORD"]
["328837509","WHITE CONSTRUCTION COTTONDALE ASPHALT PLANT","2499 DILMORE ROAD","COTTONDALE",44]
["328837958","RUSS SEMINOLE SERVICE STATION","5411 10TH ST","MALONE"]
["328842053","DWAINS GROCERY #1","1994 CHURCH ST","CYPRESS"]
["328944624","WACO FOOD STORE #18 (A.K.A. SPEEDWAY #0150)","2091 HIGHWAY 71","MARIANNA",55]
["329102905","ROBERTSON GOODSON GROCERY","2400 HWY. 2 E.","CAMPBELLTON",60]
["329200858","EXPRESS LANE #60","8022 HIGHWAY 90","SNEADS",39]
["329201757","HEARN PROPERTY","5003 BASSWOOD ROAD (HWY 165  AND HUMMINGBIRD)","MARIANNA",45]
["329201823","BUSH PROPERTY","5280 CLIFF ST","GRACEVILLE"]
["329201979","GARY PEACOCK PROPERTY","4148 W LAFAYETTE ST","MARIANNA"]
["329201983","THOMPSON'S GROCERS","4705 BASSWOOD RD","GREENWOOD",45]
["329202390","EZELL STORE (FORMER)","1209 HIGHWAY 2","GRACEVILLE",50]
["329400898","TUNSTALL PROPERTY","8011 OLD SPANISH TRAIL","SNEADS",40]
["329501647","GREENWOOD FARMS REDLANDS SITE","3041 LONGVIEW RD.","COTTONDALE",34]
["329601062","GIBSON GROCERY","6280 U.S. HIGHWAY 90","CYPRESS",35]
["329800195","SUGGS PROPERTY","3734 HIGHWAY 71 NORTH","MARIANNA",89]
["329801332","GRACEVILLE FORMER FIRE DEPT. SITE","5326 BROWN STREET","GRACEVILLE",75]
["338509697","FULFORD FARMS, INC.","3212 FULFORD RD.","MONTICELLO",40]
["338509728","KWIKY FOOD MART INC","7613 E WASHINGTON ST","MONTICELLO"]
["338509729","WALKERS GENERAL STORE","CR 259 % GENERAL DELIVERY","WACISSA"]
["338509751","GRUBBS PETROLEUM SALES INC. (GRUBBS CLUSTER)","735 PEARL STREET","MONTICELLO",71]
["338509752","CHEVRON STATION","285 EAST WASHINGTON STREET","MONTICELLO",56]
["338510690","LYNDHURST PLANTATION","RT. 2 BOX 88","GREENVILLE",41]
["338520494","CAPITAL CITY TRAVEL CENTER, INC.","I-10 & HWY 59","LLOYD",46]
["338626130","GRUBBS CHEVRON","I-10 & U.S. HIGHWAY 90","MONTICELLO",31]
["338735185","AUCILLA MART (FORMER BISHOP'S COUNTRY STORE)","HWY 257 & I-10","MONTICELLO",45]
["338735672","A.V. APPLEGATE PROPERTY","4082 OLD LLOYD RD.","MONTICELLO",40]
["338839826","FINLAYSON-JOHN","US 221 & CR 146","ASHVILLE",41]
["338942804","SHEFFIELD PECAN CO (GRUBBS CLUSTER)","730 EAST PEARL STREET","MONTICELLO",71]
["338942871","GRUBBS PROPERTY, JERRY (GRUBBS CLUSTER)","N.E. CORNER OF PEARL & RAILROAD","MONTICELLO",60]
["339201189","BAILEY PROPERTY (A.K.A. MCDANIEL PROPERTY)","U.S. HIGHWAY 19 & 27","LAMONT",55]
["339300463","MAGNOLIA HILLS PLANTATION","US 19 & 27","LAMONT",31]
["339807239","RUTHERFORD STORE","25 TRAM RD","WACISSA"]
["348732277","FAST TRACK #264","U.S. HWY 27 S.","MAYO",0]
["349807619","BLUE ROCK, INC. LIMESTONE MINE","",""]
["358509901","FORMER FINA STATION #3347","",""]
["358735223","A.S. HERLONG PACKING FACILITY","118 WEST MEADOW STREET","LEESBURG",0]
["359805701","LAKE COMMUNITY ACTION AGENCY","550 EAST MAGNOLIA AVENUE","EUSTIS",29]
["368518899","MELWEB SIGNS INC","4130 WAUSAU RD","FORT MYERS"]
["368518964","SHELL-LEHIGH ACRES","1105 HOMESTEAD ROAD NORTH","LEHIGH ACRES",71]
["368519031","GULF DISPOSAL (WASTE MANAGEMENT)","11990 SR 82 E.","FORT MYERS",41]
["368519083","ALL IN ONE MART (CIRCLE K #7312)","10530 ROSEMARY DR.","BONITA SPRINGS",46]
["368519142","CIRCLE K #4850","16768 MCGREGOR BLVD.","FORT MYERS"]
["368519233","MOBIL 02-JOX","9361 COLLEGE PARKWAY","FORT MYERS",30]
["368519304","HANDY FOOD STORE #83","2238 LAUREL LANE","NORTH FORT MYERS",36]
["368519319","7-ELEVEN FOOD STORE #17316","4880 BALLARD RD.","FORT MYERS",46]
["368520477","HESS # 09458","27001 OLD US HIGHWAY 41","BONITA SPRINGS",48]
["368627547","SCHWAB READY MIX","2110 PONDELLA RD.","NORTH FORT MYERS",46]
["368627560","BFI WASTE","","",0]
["368732543","7-ELEVEN #27273","2460 PERIWINKLE WAY","SANIBEL ISLAND",72]
["369802503","FALL LEATHER FURNITURE","","",0]
["378510190","AVIS RENT A CAR FACILITY","3300 SOUTHWEST CAPITAL CIRCLE","TALLAHASSEE",0]
["378510208","INLAND-CAPITAL CIRCLE SOUTH","STATE ROUTE 20 AND CAPITAL CIRCLE SOUTHWEST","TALLAHASSEE",82]
["378510221","SHELL-COUNTRY CORNER","3105 APALACHEE PKY","TALLAHASSEE"]
["378510248","EXXON #4-5568-BETTON HILLS","1943 THOMASVILLE ROAD","TALLAHASSEE",75]
["378510254","SPUR #1335-FLOYD SEAY","601 WEST GAINES STREET","TALLAHASSEE",30]
["378510261","SHELL - GENE'S NORTHSIDE","2436 N. MONROE STREET","TALLAHASSEE",30]
["378510269","ISLAND FOOD STORE #321","3436 THOMASVILLE ROAD","TALLAHASSEE",30]
["378510272","FL DEPT OF TRANSPORTATION ROW-FRMR ISLAND FD #324","3008 APALACHEE PKWY","TALLAHASSEE"]
["378510305","EZ SERVE #4322","9512 APALACHEE PARKWAY","TALLAHASSEE",0]
["378510323","FORMER FINA STATION #6621","",""]
["378510325","MIRROR CLEANERS","471 JOHN KNOX ROAD","TALLAHASSEE",30]
["378510334","MIKE'S BEER BARN","556 W. TENNESSEE ST.","TALLAHASSEE",60]
["378510356","ELI ROBERTS OIL CO","2195 LAKE BRADFORD RD","TALLAHASSEE"]
["378510358","EXPRESS LANE #61","6330 CRAWFORDVILLE ROAD","TALLAHASSEE",55]
["378510372","FORMER FINA STATION 6624","2501 NORTH MONROE STREET","TALLAHASSEE",30]
["378510387","ALAMO RENT A CAR #090","1720 CAPITAL CIRCLE SE","TALLAHASSEE"]
["378510392","BP - SEMINOLE","802 LAKE BRADFORD ROAD","TALLAHASSEE",0]
["378510394","SHELL-GAINES STREET","530 W GAINES ST.","TALLAHASSEE",30]
["378510400","CIRCLE K #2705169","2849 APALACHEE PKY","TALLAHASSEE"]
["378510402","CIRCLE K #05180","5012 CRAWFORDVILLE RD","TALLAHASSEE"]
["378510403","CIRCLE K #2705178","2009 W PENSACOLA ST","TALLAHASSEE"]
["378510407","EXXON - S. MONROE","1417 S. MONROE STREET","TALLAHASSEE",80]
["378510423","AUTRY #444-SPEEDY FOOD MART","2720 BLAIR STONE RD","TALLAHASSEE"]
["378510448","TEXACO FOOD MART #100910","3115 APALACHEE PKY","TALLAHASSEE"]
["378510449","TENNECO #42","295 NORTH MAGNOLIA DRIVE","TALLAHASSEE",30]
["378510450","TEXACO SIXTH AVE","1240 THOMASVILLE RD","TALLAHASSEE"]
["378510472","CHEVRON-G W HUNTER #2008","2008 W PENSACOLA ST","TALLAHASSEE"]
["378510477","WOODVILLE GENERAL STORE","HWY 363","WOODVILLE"]
["378510479","INLAND FOOD STORE","WOODVILLE HWY 363","WOODVILLE"]
["378519412","EXPRESS LANE #6","SR 20 WEST","TALLAHASSEE",56]
["378519449","JET #09068 (AKA CONOCO #09068)","1708 N. MONROE STREET","TALLAHASSEE",75]
["378519460","PAT'S SUPERMARKET","1380 LAKE BRADFORD","TALLAHASSEE",31]
["378519999","TEXACO FOOD STORE #4208","400 NW CAPITAL CIRCLE AND HIGHWAY 20","TALLAHASSEE",83]
["378520653","CIRCLE K #2705179","HIGHWAY 20 AND CAPITAL CIRCLE SOUTHWEST","TALLAHASSEE",51]
["378629873","JET FUEL, INC.","6601 N. MONROE ST.","TALLAHASSEE",61]
["378630064","TALLAHASSEE FURNITURE CO-WAREHOUSE","657 W BREVARD ST","TALLAHASSEE"]
["378630721","RACEWAY #831","1143 W. ORANGE AVENUE","TALLAHASSEE",56]
["378733950","FL SHEET METAL WORKS INC","115 W JENNINGS ST","TALLAHASSEE"]
["378736542","M OF TALLAHASSEE","4223 CAPTIAL CIRCLE NW","TALLAHASSEE",44]
["378944186","CIRCLE K #2705166","1421 NORTH MONROE STREET","TALLAHASSEE",60]
["378944513","WAYSIDE FARMS GENERAL STORE","6310 BLOUNTSTOWN HWY","TALLAHASSEE"]
["379101138","STOUTAMIRE PROPERTY (KINNETS DAIRY)","4044 APALACHEE PARKWAY","TALLAHASSEE",50]
["379101511","EAST PARK AVE PARTNERSHIP BUILDING","300 E PARK AVE","TALLAHASSEE"]
["379101633","BLOUNTS PLUMBING","804 N. MONROE STREET","TALLAHASSEE",51]
["379103259","CUMBIE CONSTRUCTION","4871 WOODLANE CIRCLE","TALLAHASSEE"]
["379201129","DAYS INN SOUTH","3100 APALACHEE PKWY","TALLAHASSEE"]
["379201661","BOOKSHELF","1303 S MONROE ST","TALLAHASSEE"]
["379202234","FL STATE UNIVERSITY-PLANT OPS & MAINT","116 MENDENHALL BLDG A","TALLAHASSEE"]
["379501501","KATIES LAKESIDE TRAILER PARK","3705 DORIS DR","TALLAHASSEE"]
["388510521","SUNOCO #0894-2567","",""]
["388510522","SUNOCO #0835-6370","1824 N. YOUNG BLVD","CHIEFLAND",40]
["388510535","QUIK STOP-HERSHEL","190 SE HWY 19","OTTER CREEK"]
["388510583","BUCKEYE FLORIDA LTD, PARTNERSHIP","",""]
["388520386","JIFFY FOOD STORE #2948","607 SOUTH MAIN STREET","CHIEFLAND",60]
["388625933","FL DEPT OF AGRICULTURE ANDREWS NURSERY","9850 NW 42ND CT","CHIEFLAND"]
["388737197","BEAUCHAMP HARDWARE","32 MAIN STREET","CHIEFLAND",0]
["388838921","CYPRESS STATION STORE","7690 SW HIGHWAY 24","CEDAR KEY",45]
["388839698","SUNRISE FOOD MART # 48","524 W. NOBLE AVE","WILLISTON",55]
["388841295","CHIEFLAND TEXACO FACILITY","",""]
["389200588","MARTINS COUNTRY STORE","230 SE 19-98","OTTER CREEK"]
["398510628","HOGLY WOGLY #6 FORMER COUNTRY CORNER","INTERSECTION OF HWY 20 & 65","HOSFORD",77]
["398510631","EZ SERVE #4240","HIGHWAY 20 EAST","HOSFORD",71]
["399600843","GOODWIN PROPERTY","SR 270 & CR 1641","ROCK BLUFF"]
["408510674","JIFFY FOOD STORE #317","8267 EAST U.S. HIGHWAY 90","LEE",39]
["408510676","JIMMIES TRUCK STOP INC","I-10 & HWY 53 S","MADISON"]
["408510683","JOHNSON & JOHNSON #5","I-10 & HWY 53","MADISON"]
["408510684","JOHNSON & JOHNSON #6","I-10 & SR 255","MADISON",35]
["408510688","JOHNSON & JOHNSON # 26 (FORMER KINSEY CHEVRON)","215 E. BASE STREET","MADISON",56]
["408510692","FAST TRACK FOODS #304","13689 WEST US 90","GREENVILLE"]
["408519598","HALLS EXPRESS LUBE","200 E BASE ST","MADISON"]
["408521029","JOHNSON & JOHNSON #2","US HWY 90 & 221 N","GREENVILLE",40]
["408625910","JIMMIE'S AUTO TRUCK PLAZA","",""]
["408629814","SAMPALA LAKE RANCH","ROUTE 158","MADISON",46]
["408629832","MADISON CITY WAREHOUSE","",""]
["408629922","FORMER COASTAL MART #408","810 WEST BASE STREET","MADISON",56]
["408731975","FAST TRACK #410 - MADISON TANK & TUMMY","420 LAKESHORE DR","MADISON"]
["408944633","HANSON PIPE & PRODUCTS - 4190 HWY 17 SOUTH, GREEN COVE SPRINGS","","",0]
["409201852","THIGPENS GROCERY","U.S. HWY 221 N","GREENVILLE",40]
["409401485","FARMER;S HOME ADMINISTRATION","COUNTY ROAD 146","MADISON",0]
["409602462","BAILEY PROPERTY","CR 360 & US 221","GREENVILLE"]
["418510776","HANDY MART - CARTER'S","835 US HIGHWAY 301","BRADENTON",45]
["418510859","SPEEDWAY #81","1020 HWY. 301BOULEVARD","BRADENTON",27]
["418510926","QUICK MART","2927 CORTEZ ROAD WEST","BRADENTON",31]
["418510976","MYAKKA PLAZA","36255 HIGHWAY 70 EAST","MYAKKA CITY",45]
["418623960","CIRCLE K #7071","4503 US HWY 41 N","PALMETTO"]
["418624038","ALAMO RENT-A-CAR #60","8311 NORTH TAMIAMI TRAIL","SARASOTA",10]
["418624312","SPEEDWAY #0091","1526 51ST AVE. E","ELLENTON",31]
["418624349","FORMER BILL GRAHAM FORD DEALERSHIP","3400 14TH STREET WEST","BRADENTON",0]
["418624380","CURTIS ROAD LAND CO., LLC","HIGHWAY 70 EAST","MYAKKA CITY",41]
["418630043","MYAKKA SUBSTATION","36650 ARCADIA AVE.","MYAKKA CITY",0]
["418631201","DOLPHIN AVIATION INC.","8191 NORTH TAMIAMI TRAIL","SARASOTA",7]
["418732457","WHITFIELD U-GAS","6829 15TH STREET EAST","SARASOTA",31]
["418842238","CONE PROPERTY","US 301 & SR 62","PARRISH"]
["418942596","AMOCO STATION (AKA SR 64 AMOCO)","5530 S. R. 64 EAST","BRADENTON",41]
["418942830","PERICO HARBOR MARINA","",""]
["419102615","PALMETTO POLICE DEPARTMENT","1115 10TH STREET","PALMETTO",0]
["419201948","PETE HERRERA PROPERTY","12107 60TH STREET EAST","PARRISH",40]
["419801998","CITY OF BRADENTON POLICE STATION","1004 9TH AVENUE WEST","BRADENTON",0]
["419802667","KEPECZ PROPERTY","4504 125TH STREET WEST","BRADENTON",0]
["420840536","THE PANTRY, INC./LIL' CHAMP #1238","14880 NE COUNTY ROAD 315","FORT MCCOY",0]
["428511038","CIRCLE K #0210","11946 NORTH WILLIAMS STREET","DUNNELLON"]
["428511076","SUNOCO#0704-9968","11716 N.WILLIAMS STREET","DUNELLON",58]
["428511082","EXXON-CASH'S","3711 SOUTHWEST COLLEGE ROAD","OCALA",81]
["428511105","GATE #1133","1800 S.W. 135TH STREET","OCALA",34]
["428511115","BP #24694(FORMER)","5100 E SILVER SPRINGS BLVD","SILVER SPRINGS"]
["428511136","HANDY WAY FOOD STORE #3316","1898 NORTHEAST 24TH STREET","OCALA",65]
["428511139","HANDY WAY FOOD STORE #2318 (AKA HANDY WAY # 3318)","14999 NORTH HIGHWAY 225","FAIRFIELD",45]
["428511144","HANDY WAY FOOD STORE #3326","12474 NW GAINESVILLE ROAD","LOWELL",75]
["428511157","FORMER SPEEDWAY #9840","2258 NORTH PINE AVENUE","OCALA",0]
["428511189","KEYSTOP #430","2957 NW PINE AVE","OCALA"]
["428511210","PHILLIPS FOOD STORE","6926 W HWY 326 & NW 70TH AVE","OCALA"]
["428511214","BP-LAKE WEIR SALES & SERVICE","13451 SE CR 25","OCKLAWAHA"]
["428511309","RYDER TRUCK RENTAL #0136A","2216 NORTH MAGNOLIA AVENUE","OCALA",0]
["428511326","PILOT TRAVEL CTR #424","4032 W HWY 326","OCALA"]
["428511328","BAXLEY OIL COMPANY","1904 NE JACKSONVILLE RD.","OCALA",31]
["428511342","OLD TIME GARAGE","120291 SOUTH WILLIAM STREET","DUNNELLON",75]
["428511357","CHEVRON-BLITCHTON RD","3901 NW BLITCHTON RD","OCALA"]
["428511361","FL CITRUS CTR #30","1805 SW 135TH ST","OCALA"]
["428511390","RICHE'S TEXACO","43 SOUTHWEST PINE AVENU","OCALA",65]
["428511390","TEXACO-RICHE'S","43 SW PINE AVE","OCALA"]
["428511409","FORMER SPEEDWAY #6883/SUNOCO #0613-8168","",""]
["428520005","SUWANNEE SWIFTY FOOD STORE","US 441 & OLD US 441","OCALA",45]
["428521702","BP FOOD MART","3257 N JACKSONVILLE RD","OCALA"]
["428622648","H.L. CLEMMONS JR. TRUSTEE PARTNERSHIP","U.S. HIGHWAY 301","CITRA",45]
["428622738","FORMER BP STATION #24633","1010 SOUTHWEST PINE AVENUE","OCALA",10]
["428629939","FORMER CORNER DELI","",""]
["428630328","STANDARD SAND & SILICA CO.","",""]
["428630396","OCALA MAIN POST OFFICE","400 SOUTHWEST 1ST AVENUE","OCALA",0]
["428630406","FORMER  ELLIS PROPERTY","28 LOCUST RUN","OCALA",55]
["428630456","FOXMOOR ARABIANS INC. (WENTWORTH)","12345 NW 110TH AVE","REDDICK",45]
["428736176","FORMER WOLFRAM GROVE","16044 S.E. 182ND COURT , WOLFRAM GROVE RD.","WEIRDALE",45]
["428840536","THE PANTRY #1238","14880 NE CR 315","FORT MCCOY"]
["428943080","CHARLIES FOOD STORE (AKA SUPER FOOD MART)","11190 SE HIGHWAY 484","BELLEVIEW",72]
["428944331","BAXLEY TRAVEL CENTER","331 NW 20TH STREET","OCALA",31]
["429046330","HESS #09273","3400 S PINE AVE","OCALA"]
["429100103","FORMERLY MEADS AUTO","6304 NE JACKSONVILLE ROAD","OCALA",55]
["429100517","ORANGE HILL STATION","22275 N US 441","MCINTOSH"]
["429100631","M PORT MARINA","30505 NE 96TH PL","FORT MCCOY",50]
["429100863","DOUBLE D DINER","13631 SE STATE ROAD 25","OKLAWAHA",76]
["429100986","WILLIS MARJORY","2715 NE 52ND CT","SILVER SPRINGS"]
["429102455","BAZEMORE PROPERTY","6631 HIGHWAY 320 NW","MCINTOSH",45]
["429103388","ZETROUERS CASH STORE","21700 N. HWY 329","MICANOPY",45]
["429103545","CHISOLM TEXACO","3761 NORTHWEST BLITCHTON ROAD","OCALA",80]
["429200127","TRI CITY ALUMINIUM","7175 S PINE ST","OCALA"]
["429200474","W.F. HOFFMAN INC. (AKA LEISURE LIVING ESTATES)","7850 SOUTH PINE AVENUE","OCALA",55]
["429200734","GOOD NEWS FOR LIFE","118 N PINE AVE","OCALA"]
["429202330","SHADY FARM - SOUTH ANNEX","6200 SW 27TH AVE.","OCALA",45]
["429502718","PALMOUR PROPERTY","OLD U.S. 441","REDDICK",56]
["429602604","UNIVERSAL GARAGE","CR 200A","SPARR"]
["429800318","POPEYE'S CHICKEN","1713 SW PINE AVENUE","OCALA",65]
["429805678","CSXT TRAIN DERAILMENT","BETWEEN 36TH STREET AND STATE ROAD 40","OCALA",0]
["438511441","LIBERTY PETROLEUM","1700 NE COMMERCIAL ST","JENSEN BEACH",71]
["438511442","FORMER SPEEDWAY #9683/SUNOCO #0613-4431","3024 SE DIXIE HWY","STUART",30]
["438511487","COMO OIL CO. OF FLORIDA","3586 SW MARTIN HIGHWAY","PALM CITY",70]
["438511496","AMOCO - HOLIDAY","1213 SOUTH FEDERAL HIGHWAY","STUART",60]
["438511509","PELICAN FOOD MART","2001 SE OCEAN BLVD","STUART"]
["438511511","AMOCO-PALM CITY","1155 MARTIN DOWNES BLVD","PALM CITY"]
["438511515","SUNOCO #0967-6784 (CONOCO #09053)","1601 S. FEDERAL HWY","STUART",71]
["438511522","JALSAI INC","1499 NE JENSEN BCH BLVD","JENSEN BEACH"]
["438511524","IFSA COVE PROPERTY INC","4255 SE COVE RD","STUART"]
["438511527","DAILY STOP FOOD STORE","995 SE MARTIN DOWNS BLVD","PALM CITY"]
["438511545","FORMER CHEVRON #48050 - JOHN BARRINGER","275 SW MONTEREY ROAD","STUART",46]
["438511547","RIVERWATCH MARINA","200 SW MONTEREY ROAD","STUART",46]
["438511598","ALVAREZ GAS & SERVICE","15575 SW WARFIELD BLVD","INDIANTOWN"]
["438520055","CIRCLE K #4424","897 NE DIXIE HWY","JENSEN BEACH"]
["438520097","BANDY UNIVERSAL INC","3422 NE CANDICE AVE","JENSEN BEACH"]
["438520105","RANGER CONSTRUCTION INDUSTRIES, INC.","1735 SOUTH FEDERAL HIGHWAY","STUART",75]
["438629949","TEXACO-CROSSROADS","2688 NORTHEAST DIXIE HIGHWAY","JENSEN BEACH",32]
["438629961","BAKUS #1","1455 NORTH FEDERAL HIGHWAY","STUART",56]
["438629969","FP & L","","",0]
["438629978","NANA'S PETROLEUM INC #11","15475 SW WARFIELD BLVD","INDIANTOWN"]
["438630112","CHILDERS PROPERTY","10821 SW HAWKVIEW CIR.","STUART",0]
["438735221","FINA-DAVES GAS N GO","15548 SW WARFIELD BLVD","INDIANTOWN"]
["438736390","HIGHWAY FOOD & FUEL","15455 SW WARFIELD BLVD","INDIANTOWN"]
["438840500","TEXACO OF STUART (FORMER BP #470)","3200 SE FEDERAL HWY","STUART",56]
["439046352","TEXACO FOOD SHOP","15328 WARFIELD BLVD","INDIANTOWN"]
["439102711","JONATHANS LANDING GOLF CLUB - OLD TRAIL","3628 SE LONGPOND TERRACE","JUPITER",55]
["439200928","WALLACE AUTOMOTIVE","6491 SE FEDERAL HIGHWAY","STUART",66]
["448511796","FORMER BP #2475","","",0]
["449102231","TARMAC RMC","US HIGHWAY 1, MILE MARKER 8.5","ROCKLAND KEY",0]
["449200099","KEY WEST CITY HALL","","KEY WEST",0]
["458512055","BP #00363283","US 1-301 & HWY 200","CALLAHAN"]
["458512067","AMOCO CONNER'S","115 1ST AVENUE WEST","CALLAHAN",0]
["458512082","SUNSHINE FOOD MART #22","110 W.HIGHWAY 200","YULEE",41]
["458512091","SHELL-FIRST COAST ENERGY #1040","3358 HWY 17 N","YULEE"]
["458512100","ISLAND FOOD STORE #120","542459 US HIGHWAY 1","CALLAHAN",0]
["458512100","ISLAND FOOD STORE #120","542459 US HWY 1","CALLAHAN"]
["458512104","BP-BUCKS","200 N KINGS RD","HILLIARD"]
["458512105","FIRST COAST ENERGY #3004","710 CENTRE STREET","FERNANDINA BEACH",56]
["458512112","HILLIARD TOWN AIRPORT","EASTWOOD ROAD","HILLIARD",71]
["458512114","THE PANTRY #6056","2734 LEM TURNER RD.","CALLAHAN",51]
["458512127","LIL' CHAMP #6095","",""]
["458512135","UNION 76-LIBBYS","US 1 N & 3RD","HILLIARD"]
["458512153","RAINBOW STATION","A1A & US 1","CALLAHAN"]
["458512160","SHELL-FIRST COAST ENERGY #346","I-95 & US 17","YULEE"]
["458512162","FLASH FOODS #172","542322 US HWY 1","CALLAHAN"]
["458512175","EAGLE FOODS #180","115 SR 200 & A1A","YULEE"]
["458521088","CASEY'S","US 17 N & I-95","YULEE"]
["458521091","FLORIDA DEPT. OF TRANSPORTATION CALLAHAN","HIGHWAY 200","CALLAHAN",51]
["458521960","FERNANDINA BEACH-CITY HALL","204 ASH ST","FERNANDINA BEACH"]
["458521961","FERNANDINA BEACH CITY AIRPORT","","",0]
["458629441","SUNBAY FOOD MART","22959 CR 121","HILLIARD",51]
["458629983","JACKSONVILLE AIR ROUTE TRAFFIC CONTROL CENTER (ARTCC)","10 AVIATION AVENUE","HILLIARD",0]
["458837629","HANCE OIL COMPANY","1467 EAST STATE ROAD 200","YULEE",0]
["458837923","KALES COUNTRY CORNER","COLAS FERRY RD","HILLIARD"]
["458839576","AMELIA ISLAND YACHT CLUB","251 CREEKSIDE DRIVE","AMELIA ISLAND",0]
["458841189","SUPER TEST FOOD STORE","401 KINGS RD S","CALLAHAN"]
["458841538","ELM STREET STATION-501 SOUTH 9TH STREET","",""]
["458943775","SMILE GAS STATION #39","2135 SADLER ROAD","FERNANDINA BEACH",0]
["458943973","FLASH FOOD STORE #142","US 1 & 2ND ST","HILLIARD"]
["459046102","FERNANDINA HARBOR MARINA","1 FRONT ST","FERNANDINA BEACH"]
["459202061","NASSAU SOUND & ELECTRONICS (A.K.A. HOLLYWOOD SATELLITE TV)","ROUTE 3 & U.S. HIGHWAY 1 SOUTH","CALLAHAN",51]
["459202448","REWIS PROPERTY","22916 CR 121","HILLARD",51]
["468512381","RITZ FOOD STORE #3","248 HOLLYWOOD BLVD.","FORT WALTON BEACH",30]
["468512385","ANTIQUE STORE (FORMER ROBINSON'S CRUZ-THRU)","104 FERRY AVENUE SE","FORT WALTON",30]
["468837724","FORMER CHECKER YUGO","240 EGLIN PARKWAY SE","FORT WALTON BEACH",30]
["478512469","ROBERT NELSON PROPERTY (AKA 700 A COUNTRY STORE)","22302 NW 176TH AVE.","OKEECHOBEE",41]
["478512488","CHEVRON #42152","104 NW PARK STREET","OKEECHOBEE",36]
["478512502","FORT DRUM GENERAL STORE","30850 HWY 441 N","OKEECHOBEE",40]
["478512524","FMR. BP NORTH PARK","200 W NORTH PARK ST.","OKEECHOBEE",36]
["478512539","TOWNSTAR #39","12800 HWY 70 E","OKEECHOBEE",41]
["478512548","CIRCLE K #7329","400 HWY 98 N","OKEECHOBEE",56]
["478512549","CIRCLE K #7402","3761 HIGHWAY 441","OKEECHOBEE",50]
["478512560","SOUTHERN DEVELOPMENT & CONSTRUCTION (A.K.A. HOLMES OIL COMPANY)","701 N. PARROTT AVENUE","OKEECHOBEE",56]
["478519986","FL DEPT. OF TRANS. TURNPIKE DISTRICT MP 184","FT. DRUM SERVICE PLAZA MP - 141","FORT DRUM",48]
["478519987","FLORIDA POWER & LIGHT CO-OKEECHOBEE SERVICE CTR.","825 N.W. 34TH AVENUE","OKEECHOBEE",36]
["478630259","EXXON-OKEECHOBEE","104 N PARROTT AVE","OKEECHOBEE"]
["478630265","NICHOLS SANITATION","719 NORTH HIGHWAY 98","OKEECHOBEE",0]
["478736776","POOR TOM'S TRUCK STOP","8675 HWY 441 SE","OKEECHOBEE"]
["478841570","AJ PETROLEUM LLC #1124","510 NE PARK ST","OKEECHOBEE"]
["479102003","AUTO CLINIC","223 SOUTH PARROTT AVENUE","OKEECHOBEE",36]
["479102069","PIZZA HEAVEN","208 S. PARROTT AVENUE","OKEECHOBEE",36]
["479103533","FORMER M & M ALTERATIONS","204 S. PARROTT AVENUE","OKEECHOBEE",36]
["479200577","CYPRESS CREEK PHASE ONE","8000 HIGHWAY 70 EAST","OKEECHOBEE",41]
["479600049","441 SUPERETTE","US 441 AT NW 34TH STREET","OKEECHOBEE",41]
["488512729","KINDER MORGAN-CENTRAL FLORIDA PIPELINE","9919 SOUTH ORANGE AVENUE","ORLANDO",46]
["488512755","7-ELEVEN #30046","5703 SOUTH SEMORAN BOULEVARD","ORLANDO",26]
["488513192","MOBIL SERVICE STATION 02-G8N","4683 SOUTH ORANGE BLOSSOM TRAIL","ORLANDO"]
["488513391","CIRCLE K #7340","18620 EAST COLONIAL DRIVE","BITHLO",51]
["488513542","FORMER MOBIL 02-JJH (#12271)","",""]
["498520956","CIRCLE K #7124","","",0]
["508513773","7-ELEVEN STORE NO. 20982","",""]
["508514512","CITGO-MIZNER PARK","600 NORTH FEDERAL HIGHWAY","BOCA RATON"]
["508520550","BP AMOCO #60869","",""]
["508841372","CHEVRON #202640","6970 OKEECHOBEE BLVD.","WEST PALM BEACH",31]
["508841626","D.S. EAKINS CONSTRUCTION SITE (AKA BENOIST FARMS)","500 BENOIST FARMS ROAD","WEST PALM BEACH",55]
["508841778","MOBIL BEELINE","",""]
["518514899","C J PETTERS & SONS INC","31448 SAINT JOE RD","DADE CITY"]
["518514915","DAIRY MART #5530","28225 HIGHWAY 54 WEST","WESLEY CHAPEL",30]
["518514920","CUMBERLAND FARMS #1008","20400 NORTH HIGHWAY 98","DADE CITY",46]
["518514945","A1 DISCOUNT STORE INC","6529 MASSACHUSETTS AVE","NEW PORT RICHEY"]
["518514948","AMOCO-NEW PORT RICHEY #376 (A.K.A. FINA #7077)","4016 U.S. HIGHWAY 19 SOUTH","NEW PORT RICHEY",65]
["518514971","HARVEY'S SERVICE","US HWY 41, LAND O'LAKES","LAND O' LAKES",35]
["518514976","BP HILLTOP","13851 SOUTH 7TH STREET","DADE CITY",0]
["518514982","HAGEN SERVICE CENTER","5945 MASSACHUSETTS AVE","NEW PORT RICHEY"]
["518514985","FIRST CHOICE MINIMART, FORMER LIL' CHAMP #6151","7424 STATE ROAD 54","NEW PORT RICHEY",55]
["518514988","KASH N' KARRY FOOD STORE","6425 US HIGHWAY 19","NEW PORT RICHEY",32]
["518514991","JJS CHEVRON INC","3939 LAND O LAKES BLVD","LAND O LAKES"]
["518515003","SHORTCUT STATION","5736 LAND O LAKES BLVD","LAND O' LAKES",45]
["518515011","MOBIL #02-AM5","7008 LITTLE ROAD","NEW PORT RICHEY",61]
["518515028","CHEVRON 47132-POLK","I-75 & S.R. 52 (29809 SR 52)","SAN ANTONIO",30]
["518515033","FDOT RIGHT OF WAY (SATURN FOOD STORE)","3934 LAND O LAKES BOULEVARD","LAND O LAKES",50]
["518515054","CIRCLE K # 7176","SR 54 & CEDAR BLVD.","ELFERS",85]
["518515059","MOTIVA ENTERPRISES (FORMER TEXACO #119-24-203-1300","9008 SR 52","HUDSON"]
["518515076","THOMAS & SONS","4444 GALL BLVD.","ZEPHYRHILLS",63]
["518515084","JH WILLIAMS OIL COMPANY","810 EAST MERIDIAN AVE","DADE CITY",75]
["518519638","HESS #09413","13508 HWY 54","ODESSA"]
["518519669","DEVCO #428","1591 US 301 N","ZEPHYRHILLS"]
["518519672","A B M M PROPERTY (AKA TERRACE STATION)","7010 GALL BOULEVARD","ZEPHYRHILLS",80]
["518519792","CHEVRON-SAN ANTONIO","32725 HWY 52","SAN ANTONIO"]
["518519846","HESS #09415","6026 GALL BLVD","ZEPHYRHILLS"]
["518519850","ATLAS AUTO SERVICE","508 GALL BLVD","ZEPHYRHILLS"]
["518519875","DADE CITY CITGO","18232 U.S. HIGHWAY 301","DADE CITY",100]
["518519941","FAMOUS TATE","8010 GRAND BLVD.","PORT RICHEY",30]
["518520014","CITGO TRILBY","20949 US HWY 98","TRILBY",54]
["518520041","FLYING J TRAVEL PLAZA","29809 STATE ROAD 52","SAN ANTONIO",67]
["518520046","7-ELEVEN FOOD STORE #16533","38544 5TH AVE","ZEPHYRHILLS"]
["518520049","MAJIK MARKET #7394","2322 LAND O LAKES BLVD","LUTZ"]
["518520486","HESS #09414","9 CHAPMAN SQUARE","LAND O' LAKES",46]
["518521241","GHA LOCK JOINT INC","COIT RD","LACOOCHEE"]
["518521244","IN N OUT","2908 SEVEN SPRINGS BLVD.","HUDSON",30]
["518521491","LIL CHAMP #6195","6226 ROWAN RD","NEW PORT RICHEY"]
["518626631","SHELL-HOLIDAY","2008 US HWY 19 N","HOLIDAY"]
["518629895","GRAND AMOCO","5523 C.R. 54","NEW PORT RICHEY",100]
["518629897","AMOCO-VICTORY","7605 HWY 52","HUDSON"]
["518630205","PASCO CNTY-SHERIFF'S DEPT-DC","405 N 5TH ST","DADE CITY"]
["518630211","PASCO CNTY FLEET MAINTENANCE","30906 WARDER RD","SAN ANTONIO"]
["518630219","RICK'S CAFÉ","5002 MISSION SQUARE LANE","ZEPHYRHILLS",65]
["518630750","GREAT BAY DISTRIBUTORS, INC.","3221 GRAND BLVD.","HOLIDAY",60]
["518732281","7-ELEVEN FOOD STORE #27243","23434 HWY 54","LUTZ"]
["518732283","7-ELEVEN #27192","12101 HIGHWAY 52","HUDSON",45]
["518736774","AMOCO #10717 - ACA #060","18638 US HWY 19 N","HUDSON"]
["518837569","PLAZA MATERIALS CORP.","41150 YONKERS BOULEVARD","ZEPHYRHILLS",45]
["518840782","SUNOCO #0612-4028 (A.K.A. FORMER SPEEDWAY #387)","5736 U.S. HIGHWAY 19","NEW PORT RICHEY",32]
["518841173","BOB'S FILTERED OIL COMPANY, INC.","2700 LAND O'LAKES BLVD.","LAND O'LAKES",95]
["518841889","CITGO FLORAMAR","4930 FLORAMAR TER","NEW PORT RICHEY"]
["518942927","FERRIS FARMS INC","2607 US 41 N","LAND O LAKES"]
["519063856","SEVEN SPRINGS DASH IN DASH OUT","1529 SEVEN SPRINGS & MITCHELL BLVD","NEW PORT RICHEY",65]
["519100736","WILLOW BEND DASH-IN DASH-OUT","22932 HIGHWAY 54","LAND O'LAKES",50]
["519101813","FORMER WELLS FOOD MARKET","5801 LAND O' LAKES BLVD., NKA 5811 EHREN CUTOFF","LAND O' LAKES",45]
["519202289","DES LITTLE & SONS PAVING CONTRACTORS","RIDGE ROAD","PORT RICHEY",60]
["519203030","OAKLEY GROVES INC","13126 S US HWY 301","DADE CITY"]
["519500037","D.C. JOHNSON & ASSOCIATES","11911 S CURLEY AVENUE","SAN ANTONIO",81]
["519801205","PASCO MOTORS INC","14341 N 7TH ST","DADE CITY"]
["528623412","HESS STATION #09445","",""]
["538628372","CITY OF LAKELAND-WILLIAMS WATER TREATMENT PLANT","1501 W. BELLA VISTA ST.","LAKELAND",75]
["548515700","BOATHOUSE MARINA, PALATKA","329 RIVER ROAD","PALATKA",0]
["548515718","CUMBOS GARAGE (FKA SP DISCOUNT BEVERAGE)","1006 HWY 20","INTERLACHEN",51]
["548515724","SUNOCO #0173-5114 (FORMER COASTAL MART)","276 HIGHWAY 17 SOUTH","EAST PALATKA",71]
["548515746","BP FOOD MART","238 US HWY 17 NORTH","PALATKA",61]
["548515748","HANDY WAY (PANTRY) #2643","",""]
["548515749","HANDY WAY #2399","1438 CR 309","GEORGETOWN",31]
["548515751","THE PANTRY #2329","902 SR 20","INTERLACHEN"]
["548515754","HANDY WAY FOOD STORE #2006(AKA #3006)","HWY 20 & HWY 21","HAWTHORNE",41]
["548515762","GEORGIA-PACIFIC PALATKA OPERATIONS SITE","COUNTY ROAD 216","PALATKA",55]
["548515764","TEXACO EXPRESS MART #301","300 SOUTH SUMMIT STREET","CRESCENT CITY",56]
["548515774","HANDY WAY #2054","2110 HWY 17 S","CRESCENT CITY"]
["548515778","SUNOCO #0887-4919","167 HWY 17","EAST PALATAKA"]
["548515788","MATCHETT & SONS","298 HWY 21 S","HAWTHORNE"]
["548515807","FL POWER & LIGHT CO-PUTNAM PLT","US HWY 17 S","EAST PALATKA"]
["548515809","FORMER CENTRAL SERVICE AUTO REPAIR","2 SOUTH SUMMIT STREET","CRESCENT CITY",0]
["548515821","BOSTWICK COMMUNITY STORE-FORMER","1092B HWY 17 N","BOSTWICK"]
["548515831","TEXACO-RONNIES","4011 CRILL AVENUE","PALATKA",47]
["548521000","PUTNAM COUNTY BOARD OF COMM. E. ROAD CAMP","223 PUTNAM COUNTY BLVD.","EAST PALATKA",43]
["548521008","HANDY WAY #2233","1136 SR 20","INTERLACHEN",40]
["548521021","FLORIDA ROCK INDUSTRIES PROPERTY, PALATKA","",""]
["548625914","FELDSPAR CORPORATION EPK CLAY DIVISION","COUNTY ROAD 20A","EDGAR",0]
["548630901","HANDY WAY #2109","1205 S. SR 19","PALATKA",41]
["548732053","LIL CHAMP FOOD STORE #6289 (PANTRY 6289)","744 SOUTH HWY 17","PALATKA",41]
["549063947","K & W MOBILE HOME SALES","ROUTE 3, BOX 193","EAST PALATKA",31]
["549101655","FORMER WAYNE'S WRECKER SERVICE","3730 REID ST.","PALATKA",71]
["549201590","TEXACO EXPRESS MART","170 S. HWY. 17","EAST PALATKA",0]
["549201857","TAPPAN, BYRON (AKA TAPPAN PROPERTY)","1216 S. HIGHWAY 17","SATSUMA",51]
["549701230","PUTMAM COUNTY ROW","241 BELLE DR.","SAN MATEO",51]
["549801061","FRYERS CHICKEN","321 HWY 26","MELROSE"]
["549802834","LEE'S BAR","","",0]
["549804204","FLORIDA ROCK PROPERTIES(REDI-MIX)","3020 BILL DING AVENUE","PALATKA",0]
["558507575","TEXACO #210","1725 CR 210 WEST","JACKSONVILLE",26]
["558515858","CONCH HOUSE-ST. AUGUSTINE","57 COMARES AVE.","ST. AUGUSTINE"]
["558515862","CARGO #427","HIGHWAY 207","HASTINGS",57]
["558515878","DEFORD'S STATION","","",0]
["558515878","DEFORDS SERVICE STATION INC","HWY 207","HASTINGS"]
["558515886","FORMER COASTAL MART #483","2199 PONCE DE LEON BLVD.","ST.AUGUSTINE",14]
["558515904","I-95 CONVENIENT FOOD MART","1745 CR 210","ST. AUGUSTINE",41]
["558515912","T & S SERVICE, INC.","1740 COUNTY ROAD 210 WEST","ST. AUGUSTINE",0]
["558515917","JENNINGS CITRUS CENTER #700","1675 COUNTY ROAD 210 WEST","JACKSONVILLE",40]
["558515918","NORTH GATE SERVICE STATION","3726 NORTH PONCE DE LEON BLVD.","ST.AUGUSTINE",0]
["558515920","TEXACO #24-110-0004-MICKLER","2500 HWY 16","SAINT AUGUSTINE"]
["558515923","LIL' CHAMP #99-ST.AUGUSTINE","123 KING STREET","ST.AUGUSTINE",0]
["558515938","CHEVRON 207","2630 SR 207","ELKTON",41]
["558515941","EXXON STATION","2450 I-95 & HWY 16","SAINT AUGUSTINE"]
["558515944","FLORIDA CITRUS CENTER #20 - JA TEXACO","10000 U.S. HIGHWAY 1 SOUTH","ST. AUGUSTINE",0]
["558515996","CONTINENTAL AUTO TRUCK SERVICE CENTER","955 SR 206 W","ST. AUGUSTINE",43]
["558516004","AMG (CHEVRON - 2405 US HIGHWAY 1)","2405 U. S. 1 SOUTH","SAINT AUGUSTINE",33]
["558516008","TRACTOR DEPOT","301 N. MAIN STREET","HASTINGS",36]
["558516009","FLORIDA CITRUS CENTER #10","",""]
["558516011","RACEWAY #774","2335 SR 16","SAINT AUGUSTINE"]
["558518508","CHEVRON - TOM'S INC.","1720 CR 210 WEST","JACKSONVILLE",31]
["558518890","PATS DISCOUNT","2110 US HWY 1 S","SAINT AUGUSTINE"]
["558520995","CHARLIE T'S TRUCK STOP","",""]
["558625913","LIL' CHAMP #6276","125 SR 207","ST. AUGUSTINE",32]
["558627905","SAWGRASS GOLF COURSE MAINTENANCE PROPERTY","1647 HIGHWAY A1A","PONTE VEDRA BEACH",0]
["558630961","ST JOHNS CNTY HEALTH & HUMAN DEPT","1955 US HWY 1 S","SAINT AUGUSTINE"]
["558630999","KANGAROO #6278","8796 CHURCH ST","HASTINGS"]
["558631039","OAKBRIDGE CLUB AT SAWGRASS","254 ALTA MAR DR","PONTE VEDRA BEACH"]
["558631095","TEXACO-JOHNS","2645 SR 207","ELKTON",41]
["558732227","SOUTHEAST FLOATING DOCKS, INC.","S.R. 207 AND C.R. 305","ELKTON",0]
["558733676","THE PANTRY #2291 (A.K.A. HANDY WAY #4291)","6750 U.S. 1 SOUTH & HIGHWAY 206","SAINT AUGUSTINE",55]
["558735340","BP PONCE DE LEON","",""]
["558735444","A1A DISCOUNT BEVERAGE","855 ANASTASIA BLVD.","ST. AUGUSTINE",11]
["558839690","MILL CREEK GROCERY","5405 SR 16","ST. AUGUSTINE",41]
["559047130","ANASTASIA ISLAND WASTEWATER TREATMENT FACILITY","","",0]
["559063911","FORMER GATOR TRUCK STOP","10780 US HWY 1 NORTH","ST. AUGUSTINE",31]
["559201872","ST JOHNS CNTY-PUBLIC WORKS FACILITY","1625 HWY 16","SAINT AUGUSTINE"]
["559202100","PAUL STEWART PROPERTY","102 EAST COCHRAN STREET","HASTINGS",36]
["559600186","HALE TRUST PROPERTY","1360 S. DIXIE HIGHWAY","ST. AUGUSTINE",30]
["559801062","DOLLAR GENERAL","126 N MAIN ST","HASTINGS"]
["559802773","MILLERS SHOPS PROPERTY","3300 N. U.S. HIGHWAY 1","ST. AUGUSTINE",0]
["559803575","ABC LIQUORS, INC.","160 KING STREET","ST. AUGUSTINE",0]
["559804529","HASTINGS ELEMENTARY SCHOOL","400 EAST HARRIS STREET","HASTINGS",0]
["559805886","ST. JOHNS COUNTY SIMMS PIT","1250 SOUTH ST. JOHNS STREET","ST. AUGUSTINE",0]
["559807070","TARANTIN TANK & EQUIPMENT COMPANY","",""]
["568516030","KWIK STOP","3212A  US HIGHWAY 1 S","FORT PIERCE",46]
["568516040","AMOCO OIL CO-BULK PLANT","3401 OLEANDER AVE","FORT PIERCE"]
["568516045","AMOCO #60305","1920 AVENUE \"D\"","FORT PIERCE",71]
["568516069","LIBERTY PETROLEUM FORT PIERCE","3810 S. US 1","FT. PIERCE",71]
["568516091","DIXONS FOOD MART","2410 AVENUE D","FORT PIERCE"]
["568516105","FINA - CURT'S (AKA FORMER CURT'S-FINA)","5403 OKEECHOBEE ROAD","FORT PIERCE",60]
["568516137","HOLMES OIL CO INC","400 ANGLE RD","FORT PIERCE"]
["568516157","SOUTHSIDE TRUCK PLAZA","3500 SOUTH U.S. HIGHWAY 1","FORT PIERCE",26]
["568516178","MERCHANTS #9","2501 OKEECHOBEE RD","FORT PIERCE"]
["568516221","STEIL STATION #2","418 ANGLE RD","FORT PIERCE"]
["568516222","SHELL-GO-STOP EXPRESS (FAMILY MART INC.)","471 SW PORT ST. LUIE BLVD","PORT ST. LUCIE",36]
["568516223","SUNOCO #0611-5984","5001 S FEDERAL HWY","FORT PIERCE"]
["568516232","BERNARD A. EGAN GROVES, PENNSYLVANIA GROVE","SHINN ROAD (SOUTH OF ORANGE AVENUE)","FT. PIERCE",40]
["568518546","BERNARD A EGAN GROVES INC. ( COLONIAL GROVES)","1900 OLD DIXIE HWY","FT. PIERCE",41]
["568518551","MOHSIM FOOD MART","3030 S 25TH ST","FORT PIERCE"]
["568518583","FINA-CARTER'S GROCERY STORE","15901 ORANGE AVE","FORT PIERCE"]
["568518599","ST LUCIE CNTY-FT PIERCE FIRE DIST","2400 RHODE ISLAND AVE","FORT PIERCE"]
["568518601","FL POWER & LIGHT CO-WALTON SERVICE CNTR","1050 SE BRANDON CIR","PORT SAINT LUCIE"]
["568518629","IMG ENTERPRISES INC","1559 SNEED RD","FORT PIERCE"]
["568518631","PARADISE PINES MOBIL (AKA CIRCLE K 4851)","5300 TURNPIKE FEEDER ROAD","FORT PIERCE",26]
["568519251","SEARS FACILITY #2005","4204 OKEECHOBEE ROAD","FORT PIERCE",0]
["568628486","UNITED PARCEL SERVICE","3203 OLEANDER AVE","FT. PIERCE",41]
["568630677","FPL ST. LUCIE PLANT","",""]
["568630990","FORMER TIME SAVER","2108 ORANGE AVENUE","FT. PIERCE",70]
["568631046","FT PIERCE CONTRACTING CORP","1819 TOTTEN RD","FORT PIERCE"]
["568732828","SUNLIGHT CITRUS PACKING INC","1008 BELL AVE","FORT PIERCE"]
["568732887","AMOCO #60297","N. 6645 U.S. 1","FORT PIERCE",31]
["568837598","BEVERAGE STATION","4101 OKEECHOBEE RD","FORT PIERCE"]
["568838009","FT.PIERCE UTILITIES","311 NORTH INDIAN RIVER DRIVE","FORT PIERCE",0]
["568840041","FOUNDATION WELLPOINT CORP.","4715 S FEDEDAL HWY","FT. PIERCE",40]
["568841379","FOOD & FUEL","1311 NORTH 25TH STREET","FT. PIERCE",71]
["568944923","EDWARDS RD PROPERTIES INC","2501 EDWARDS RD","FORT PIERCE"]
["569101544","ST. LUCIE COUNTY SCHOOL BD.-LINCOLN PARK ACADEMY","1801 AVENUE I","FORT PIERCE",55]
["569101611","WILLEMS SERVICE CENTER","2202 OKEECHOBEE RD","FORT PIERCE"]
["569103248","TEN MILE CREEK UNIT #1","9101 OKEECHOBEE RD. (S.R. 70)","FORT PIERCE",43]
["569807808","CROOKS FARM","",""]
["578516445","ARD'S COUNTRY STORE","9927 MUNSON HWY","MILTON",36]
["589102806","SARASOTA COUNTY OLD JAIL","2020 MAIN STREET","SARASOTA",0]
["589102809","SARASOTA COUNTY COURTHOUSE","2000 MAIN STREET","SARASOTA",0]
["608516803","CHEVRON #46962","I-75 & SR 48","BUSHNELL",50]
["608516845","SPEEDWAY #8237","","",0]
["608516849","RACETRAC #211 (RACEWAY #946)","1200 S MAIN ST","WILDWOOD",30]
["608516854","BP BUSHNELL","2238 COUNTY ROAD 48 WEST","BUSHNELL",35]
["608516861","FORMER CIRCLE K #7353","701 SOUTH MAIN ST.","WILDWOOD",30]
["608516863","BP-GAS & ONE STOP BUYING AKA AA DISCOUNT","181 W KINGS HWY","CENTER HILL"]
["608516878","WILDWOOD TRAVEL CENTER #53","I-75 & HIGHWAY 44 @ EXIT 66","WILDWOOD",30]
["608521916","LIL CHAMP FOOD STORE #1042","HIGHWAY 301 AND SR 463","WILDWOOD",77]
["608521921"," A J PETROLEUM LLC #1164","304 N MAIN ST","BUSHNELL"]
["608521925","SHELL - SAMS","125 NORTH MARKET BOULEVARD","WEBSTER",51]
["608628420","FDOT TURNPIKE (OKAHUMPKA SERVICE PLAZA)","MILEPOST 256","WILDWOOD",60]
["608631423","CUMBERLAND FARMS #1087","2985 HWY 50 & HWY 471","TARRYTOWN",35]
["608942552","CHILDERS RICHARD D & SHEILA A","301 N MAIN ST","WILDWOOD"]
["609200405","FORMER MONARCH RANCH","WEST SR 44","WILDWOOD",44]
["618516907","A 1 FUEL STOP","3157 CR 136","WHITE SPRINGS"]
["618516909","JOY FOOD STORE #409 (COASTAL MART #409)","404 N. OHIO STREET","LIVE OAK",40]
["618516956","JIFFY FOOD STORE #304- 307 NORTH OHIO AVE, LIVE OAK","",""]
["618516958","JIFFY STORE #307","",""]
["618516980","JOHNSON & JOHNSON #25 (A.K.A. PENN OIL STATION)","6458 N. OHIO AVENUE","LIVE OAK",46]
["618516982","S & P #3","US HWY 90 & RAILROAD AVENUE","LIVE OAK",40]
["618516986","CHEVRON I-10 & 129","I-10 & US HWY 129","LIVE OAK"]
["618516991","S&S FOOD STORE","HWY 129","SUWANNEE",40]
["618516998","FIRST BAPTIST CHURCH OF LIVE OAK","","",0]
["618517039","S-N-P FOOD STORE #2","",""]
["618518510","GATE #1136","SR 136 & I-75","WHITE SPRINGS",46]
["618521164","HARRELL OIL CO","I-75 & SR 136","WHITE SPRINGS"]
["618734778","S&M DISCOUNT BEVERAGES #1","7583 US HWY 90","LIKE OAK"]
["618838170","FORMER HANSON PROPERTY","16208 221 ROAD","LIVE OAK",35]
["619806567","SUWANNEE COUNTY COURTHOUSE-224","224 PINE AVENUE","LIVE OAK"]
["628517044","WACO FOOD STORE #11","2410 HWY 19 S","PERRY"]
["628517064","NOEL'S GARAGE","427MAURICE LINTON ROAD","PERRY",30]
["628517075","RICHARD MILLER TRUCKING","HIGHWAY 19 NORTH","PERRY",45]
["628517078","BOWDEN'S CITGO","",""]
["628517107","WACO FOOD STORE #1","828 S. JEFFERSON STREET","PERRY",30]
["628517126","WILLIES FOOD MART #2","1203 S. BYRON BUTLER PARKWAY","PERRY",30]
["628517141","CHEVRON ARMSTRONG/MAIN STREET","115 N BYRON BUTLER PKWY","PERRY",60]
["628521263","CABBAGE GROVE MINE","3649 POWELL HAMMOCK ROAD","CABBAGE GROVE",0]
["628521872","TAYLOR CNTY SCHOOL BD-BUS GARAGE","1004 E BAY ST","PERRY"]
["628625981","GULF TELEPHONE COMPANY","","",0]
["628625986","BUCKEYE","",""]
["628943430","JR'S AUCILLA RIVER STORE","23485 HIGHWAY 98","NUTALL RISE",0]
["629201693","SHELL SUPER SERVICE","1809 BYRON BUTLER PKY","PERRY"]
["629201827","AMANS GAS GROCERY - FORMER MILDRED'S RESTAURANT","U.S. HIGHWAY 19 AND HIGHWAY 27","ERIDU",45]
["629501674","SHAW PROPERTY","US 19","SALEM"]
["638517147","UNION COUNTY PROPERTY (AKA BIELLING TIRE)","115 W MAIN STREET","LAKE BUTLER",52]
["638517149","FORMER COASTAL MART #405","2080 W. MAIN STREET","LAKE BUTLER",0]
["638517151","MAGGIES MEATS & GROCERIES","RT 4 BOX 2456","LAKE BUTLER"]
["638517153","ARCHER SERVICE STATION","180 E. MAIN STREET","LAKE BUTLER",56]
["638517156","HANDY WAY #2842","HIGHWAY 121 & HIGHWAY 229","RAIFORD",0]
["638517158","HANDY WAY FOOD STORE #3237","SR 18 & SR 121","LAKE BUTLER",51]
["638517177","WILLIAMS TOWN & COUNTRY","HWY 121","WORTHINGTON SPRINGS",51]
["638519168","UNION 76 - JOHN'S - LAKE BUTLER CLUSTER","LK BUTLER CLUSTER SITE","LAKE BUTLER",56]
["638731602","S&S FOOD STORE #36","SR 121 & HWY 18","WORTHINGTON SPRINGS"]
["638732088","FL DEPT OF CORRECTIONS-UNION","7819 NW 228 ST","RAIFORD"]
["639101704","ROOF SYSTEMS","HIGHWAY 121","WORTHINGTON SPRINGS",40]
["639201910","GRIFFIS J D","CR 229 & HWY 121","RAIFORD"]
["639400311","GRIFFIS PROPERTY","RR 1,  BOX 326, CR 199","RAIFORD",41]
["648517385","TAYLOR TIRE AND COMPLETE AUTOMOTIVE","1023 N. WOODLAND BLVD.","DELAND",50]
["648517523","FINA QUICK MART","589 US HIGHWAY 92","DELAND",50]
["648517548","MIKE'S CORNER","3705 HIGHWAY 44","NEW SMYRNA BEACH",51]
["648517574","PHILLIPS 66 O.C. / ROLLINS TIRE","475 SOUTH VOLUSIA AVENUE","ORANGE CITY",98]
["648517604","TEXACO-WEST ORMOND BEACH (FORMER FINA #6682)","10 NORTH NOVA ROAD","ORMOND BEACH",25]
["648517607","FMR ACREE OIL CO. BULK PLANT (FMR AOC BULK PLANT)","1025 N. WOODLAND BLVD.","DELAND",75]
["648517677","FMR CAR WORKS","638 SOUTH WOODLAND BLVD.","DELAND",60]
["648517715","EXPRESS MART #177","1043 N WOODLAND BLVD.","DELAND",77]
["648517768","ORMOND BEACH SERVICE TEXACO FACILITY","530 SOUTH ATLANTIC AVENUE","ORMOND BEACH",6]
["648622815","7-ELEVEN STORE NO. 10110","",""]
["648622851","VALERO","5145 NORTH HIGHWAY 17","DELEON SPRINGS",76]
["658517780","ADAMS STATION","HWY 319 E","CRAWFORDVILLE"]
["658517784","FORMER E Z SERVE #4217","2209 SOPCHOPPY HWY","SOPCHOPPY"]
["658517785","STOP-N-SAVE #4210","4345 BLOXHAM CUTOFF","ST. MARKS",35]
["658517806","CHEVRON-ROBERTS","2101 US HIGHWAY 319","SOPCHOPPY",40]
["658517814","SHELL POINT MARINA, 78 BEATTY TAFF DR., WAKULLA","",""]
["658517822","STRATUS PETROLEUM CORP","815 PORT LEON DRIVE","ST. MARKS",0]
["658731605","PIGOTT'S CONSTRUCTION","HIGHWAY 319 E.","CRAWFORDVILLE",36]
["658731618","TRIANGLE PETRO #257","2616 COASTAL HWY","MEDART",30]
["658734509","BRANCHS STATION & GROCERY","HWY 363","WAKULLA"]
["659047548","LOU'S BAIT & TACKLE","2146 SOPCHOPPY HIGHWAY","SOPCHOPPY",40]
["668942995","KELLEYS IGA","HWY 20","FREEPORT"]
["669200981","FORMER SUNDAY PROPERTY","9686 HWY 83 N","DE FUNIAK SPRINGS",31]
["678517957","BURMA QUEEN STATION (AKA BURMA QUEEN GROCERY)","HIGHWAY 79 SOUTH","BONIFAY",45]
["678517972","SANGAREE OIL CO","HWY 90","CHIPLEY"]
["678517973","BP-COURTHOUSE","HWY 90","CHIPLEY"]
["678517975","HOLMES CREEK AUTOMOTIVE SERVICES","RD 79 S","VERNON"]
["678517985","SUNSHINE JR #137","710 W HWY 90","CHIPLEY"]
["678517992","MONKS STATION","1346 JACKSON AVE","CHIPLEY"]
["678518006","PATSYS PLACE DELI & GROCERY","4555 HWY 79","VERNON"]
["678518012","TRI COUNTY GAS SERVICE PROPERTY","307 W JACKSON AVE","CHIPLEY"]
["678518029","EXPREZIT! #606","I-10 & HIGHWAY 77 S","CHIPLEY",31]
["678731592","WASHINGTON CNTY-CHIPLEY BUS GARAGE","WATTS AVE.","CHIPLEY",74]
["678731612","RACK STATION","US 90 & SR 277","CHIPLEY",43]
["678732405","JESCO #202","1176 JACKSON AVENUE","CHIPLEY",72]
["678732405","J & D GAS MART","1176 E JACKSON AVE","CHIPLEY"]
["678735379","PIK QUICK","1612 HIGHWAY 90","CHIPLEY",43]
["678735429","EXPREZIT! #759","1251 JACKSON AVE","CHIPLEY"]
["678838508","COASTAL PROPERTIES OF OKALOOSA CO INC","304 2ND ST S","CHIPLEY"]
["679100335","WAUSAU ASSEMBLY OF GOD","SE STATE ROAD 77 & COUNTY ROAD 278","WAUSAU",80]
["679200365","SNUFFY SMITH STORE","SR 277& CR 276A","CHIPLEY",41]
["679201146","WESTERNER","1012 US 90 E","CHIPLEY"]
["679201181","COUNTRY INN","255 HIGHWAY 77 NORTH","CHIPLEY",55]
["679201187","RHYNES GROCERY","219 EAST BLVD N","CHIPLEY"]
["679201659","KUT N KURL BEAUTY SHOP","HIGHWAY 77 NORTH","WAUSAU",75]
["679201745","FERGUSON PROPERTY","RR1 HWY 90 BOX 20","CARYVILLE",56]
["679201972","BARNES TIRE & SUPPLY","600 JACKSON AVE","CHIPLEY"]
["679202081","MAY HELEN  (FKA HELEN MAY PROPERTY)","CR 277 AND CHURCH STREET","VERNON",56]

{"sheet":"Sheet1","index":4,"n_rows":0,"n_cols":0,"rows_kept":0,"cut":false,"hidden":false,"merged":[]}